{"text_format":"1","workbook":"xlsx","n_sheets":13,"sheets":["الترحيل","يناير","فبراير","مارس","ابريل","مايو","يونيو","يوليو","اغسطس","سبتمبر","اكتوبر","نوفمبر","ديسمبر"],"not_rendered":{"charts":0,"images":0,"macros":1,"external_links":0,"defined_names":0,"comments":0,"pivot_tables":0},"unopened":[],"bounds":{"document_bytes":16777216,"sheet_cells":100000,"rows_first":2000,"rows_last":500,"rows_between":2000,"halvings":0,"cell_chars":16384,"cell_head_chars":4096},"cells_cut":0,"cells_raw":0,"read":"whole","date_system":"1900"}

{"sheet":"الترحيل","index":0,"n_rows":0,"n_cols":0,"rows_kept":0,"cut":false,"hidden":false,"merged":[]}

{"sheet":"يناير","index":1,"n_rows":216,"n_cols":9,"rows_kept":216,"cut":false,"hidden":false,"merged":[]}
["الاسم","المهنه","الاساسى","الإضافات","الاجمالى","الحسميات","صافى الراتب","التوقيع","الملاحظات"]
["محمد","مهندس",5000,1000,{"$f":"SUM(C2:D2)","v":6000},200,{"$f":"SUM(E2,-F2)","v":5800},5800,"لا توجد"]
[1,2,36,5,{"$f":"SUM(C3:D3)","v":41},88,{"$f":"SUM(E3,-F3)","v":-47},55,"للببيب"]
["محمد","عامل",3000,200,3200,500,2700,"لاتوجد","نعم"]
["سعود","منننن",6000,2000,8000,300,7700,"ممم","ااااا"]
["sa","s",0,0,null,0,null,null,"aS"]
["Shadi","maiter",1500,14,1514,3,1511,null,"sAF"]
[null,null,null,null,0,null,0]
[null,null,null,null,0,null,0]
[null,null,null,null,0,null,0]
[null,null,null,null,0,null,0]
[null,null,null,null,0,null,0]
[null,null,null,null,0,null,0]
[null,null,null,null,0,null,0]
[null,null,null,null,0,null,0]
[null,null,null,null,0,null,0]
[null,null,null,null,0,null,0]
[null,null,null,null,0,null,0]
[null,null,null,null,0,null,0]
[null,null,null,null,0,null,0]
[null,null,null,null,0,null,0]
[null,null,null,null,0,null,0]
[null,null,null,null,0,null,0]
[null,null,null,null,0,null,0]
[null,null,null,null,0,null,0]
[null,null,null,null,0,null,0]
[null,null,null,null,0,null,0]
[null,null,null,null,0,null,0]
[null,null,null,null,0,null,0]
[null,null,null,null,0,null,0]
[null,null,null,null,0,null,0]
[null,null,null,null,0,null,0]
[null,null,null,null,0,null,0]
[null,null,null,null,0,null,0]
[null,null,null,null,0,null,0]
[null,null,null,null,0,null,0]
[null,null,null,null,0,null,0]
[null,null,null,null,0,null,0]
[null,null,null,null,0,null,0]
[null,null,null,null,0,null,0]
[null,null,null,null,0,null,0]
[null,null,null,null,0,null,0]
[null,null,null,null,0,null,0]
[null,null,null,null,0,null,0]
[null,null,null,null,0,null,0]
[null,null,null,null,0,null,0]
[null,null,null,null,0,null,0]
[null,null,null,null,0,null,0]
[null,null,null,null,0,null,0]
[null,null,null,null,0,null,0]
[null,null,null,null,0,null,0]
[null,null,null,null,0,null,0]
[null,null,null,null,0,null,0]
[null,null,null,null,0,null,0]
[null,null,null,null,0,null,0]
[null,null,null,null,0,null,0]
[null,null,null,null,0,null,0]
[null,null,null,null,0,null,0]
[null,null,null,null,0,null,0]
[null,null,null,null,0,null,0]
[null,null,null,null,0,null,0]
[null,null,null,null,0,null,0]
[null,null,null,null,0,null,0]
[null,null,null,null,0,null,0]
[null,null,null,null,0,null,0]
[null,null,null,null,0,null,0]
[null,null,null,null,{"$f":"SUM(C67:D67)","v":0},null,{"$f":"SUM(E67,-F67)","v":0}]
[null,null,null,null,0,null,0]
[null,null,null,null,0,null,0]
[null,null,null,null,0,null,0]
[null,null,null,null,0,null,0]
[null,null,null,null,0,null,0]
[null,null,null,null,0,null,0]
[null,null,null,null,0,null,0]
[null,null,null,null,0,null,0]
[null,null,null,null,0,null,0]
[null,null,null,null,0,null,0]
[null,null,null,null,0,null,0]
[null,null,null,null,0,null,0]
[null,null,null,null,0,null,0]
[null,null,null,null,0,null,0]
[null,null,null,null,0,null,0]
[null,null,null,null,0,null,0]
[null,null,null,null,0,null,0]
[null,null,null,null,0,null,0]
[null,null,null,null,0,null,0]
[null,null,null,null,0,null,0]
[null,null,null,null,0,null,0]
[null,null,null,null,0,null,0]
[null,null,null,null,0,null,0]
[null,null,null,null,0,null,0]
[null,null,null,null,0,null,0]
[null,null,null,null,0,null,0]
[null,null,null,null,0,null,0]
[null,null,null,null,0,null,0]
[null,null,null,null,0,null,0]
[null,null,null,null,0,null,0]
[null,null,null,null,0,null,0]
[null,null,null,null,0,null,0]
[null,null,null,null,0,null,0]
[null,null,null,null,0,null,0]
[null,null,null,null,0,null,0]
[null,null,null,null,0,null,0]
[null,null,null,null,0,null,0]
[null,null,null,null,0,null,0]
[null,null,null,null,0,null,0]
[null,null,null,null,0,null,0]
[null,null,null,null,0,null,0]
[null,null,null,null,0,null,0]
[null,null,null,null,0,null,0]
[null,null,null,null,0,null,0]
[null,null,null,null,0,null,0]
[null,null,null,null,0,null,0]
[null,null,null,null,0,null,0]
[null,null,null,null,0,null,0]
[null,null,null,null,0,null,0]
[null,null,null,null,0,null,0]
[null,null,null,null,0,null,0]
[null,null,null,null,0,null,0]
[null,null,null,null,0,null,0]
[null,null,null,null,0,null,0]
[null,null,null,null,0,null,0]
[null,null,null,null,0,null,0]
[null,null,null,null,0,null,0]
[null,null,null,null,0,null,0]
[null,null,null,null,0,null,0]
[null,null,null,null,0,null,0]
[null,null,null,null,0,null,0]
[null,null,null,null,0,null,0]
[null,null,null,null,0,null,0]
[null,null,null,null,{"$f":"SUM(C131:D131)","v":0},null,{"$f":"SUM(E131,-F131)","v":0}]
[null,null,null,null,0,null,0]
[null,null,null,null,0,null,0]
[null,null,null,null,0,null,0]
[null,null,null,null,0,null,0]
[null,null,null,null,0,null,0]
[null,null,null,null,0,null,0]
[null,null,null,null,0,null,0]
[null,null,null,null,0,null,0]
[null,null,null,null,0,null,0]
[null,null,null,null,0,null,0]
[null,null,null,null,0,null,0]
[null,null,null,null,0,null,0]
[null,null,null,null,0,null,0]
[null,null,null,null,0,null,0]
[null,null,null,null,0,null,0]
[null,null,null,null,0,null,0]
[null,null,null,null,0,null,0]
[null,null,null,null,0,null,0]
[null,null,null,null,0,null,0]
[null,null,null,null,0,null,0]
[null,null,null,null,0,null,0]
[null,null,null,null,0,null,0]
[null,null,null,null,0,null,0]
[null,null,null,null,0,null,0]
[null,null,null,null,0,null,0]
[null,null,null,null,0,null,0]
[null,null,null,null,0,null,0]
[null,null,null,null,0,null,0]
[null,null,null,null,0,null,0]
[null,null,null,null,0,null,0]
[null,null,null,null,0,null,0]
[null,null,null,null,0,null,0]
[null,null,null,null,0,null,0]
[null,null,null,null,0,null,0]
[null,null,null,null,0,null,0]
[null,null,null,null,0,null,0]
[null,null,null,null,0,null,0]
[null,null,null,null,0,null,0]
[null,null,null,null,0,null,0]
[null,null,null,null,0,null,0]
[null,null,null,null,0,null,0]
[null,null,null,null,0,null,0]
[null,null,null,null,0,null,0]
[null,null,null,null,0,null,0]
[null,null,null,null,0,null,0]
[null,null,null,null,0,null,0]
[null,null,null,null,0,null,0]
[null,null,null,null,0,null,0]
[null,null,null,null,0,null,0]
[null,null,null,null,0,null,0]
[null,null,null,null,0,null,0]
[null,null,null,null,0,null,0]
[null,null,null,null,0,null,0]
[null,null,null,null,0,null,0]
[null,null,null,null,0,null,0]
[null,null,null,null,0,null,0]
[null,null,null,null,0,null,0]
[null,null,null,null,0,null,0]
[null,null,null,null,0,null,0]
[null,null,null,null,0,null,0]
[null,null,null,null,0,null,0]
[null,null,null,null,0,null,0]
[null,null,null,null,0,null,0]
[null,null,null,null,{"$f":"SUM(C195:D195)","v":0},null,{"$f":"SUM(E195,-F195)","v":0}]
[null,null,null,null,0,null,0]
[null,null,null,null,0,null,0]
[null,null,null,null,0,null,0]
[null,null,null,null,0,null,0]
[null,null,null,null,0,null,0]
[null,null,null,null,0,null,0]
[null,null,null,null,0,null,0]
[null,null,null,null,0,null,0]
[null,null,null,null,0,null,0]
[null,null,null,null,0,null,0]
[null,null,null,null,0,null,0]
[null,null,null,null,0,null,0]
[null,null,null,null,0,null,0]
[null,null,null,null,0,null,0]
[null,null,null,null,0,null,0]
[null,null,null,null,0,null,0]
[null,null,null,null,0,null,0]
[null,null,null,null,0,null,0]
[null,null,null,null,0,null,0]
[null,null,null,null,0,null,0]
[null,null,null,null,0,null,0]

{"sheet":"فبراير","index":2,"n_rows":216,"n_cols":9,"rows_kept":216,"cut":false,"hidden":false,"merged":[]}
["الاسم","المهنه","الاساسى","الإضافات","الاجمالى","الحسميات","صافى الراتب","التوقيع","الملاحظات"]
["salim","Prof",100,50,{"$f":"SUM(C2:D2)","v":150},10,{"$f":"SUM(E2,-F2)","v":140},null,"Nothing"]
[null,null,null,null,{"$f":"SUM(C3:D3)","v":0},null,{"$f":"SUM(E3,-F3)","v":0}]
[null,null,null,null,0,null,0]
[null,null,null,null,0,null,0]
[null,null,null,null,0,null,0]
[null,null,null,null,0,null,0]
[null,null,null,null,0,null,0]
[null,null,null,null,0,null,0]
[null,null,null,null,0,null,0]
[null,null,null,null,0,null,0]
[null,null,null,null,0,null,0]
[null,null,null,null,0,null,0]
[null,null,null,null,0,null,0]
[null,null,null,null,0,null,0]
[null,null,null,null,0,null,0]
[null,null,null,null,0,null,0]
[null,null,null,null,0,null,0]
[null,null,null,null,0,null,0]
[null,null,null,null,0,null,0]
[null,null,null,null,0,null,0]
[null,null,null,null,0,null,0]
[null,null,null,null,0,null,0]
[null,null,null,null,0,null,0]
[null,null,null,null,0,null,0]
[null,null,null,null,0,null,0]
[null,null,null,null,0,null,0]
[null,null,null,null,0,null,0]
[null,null,null,null,0,null,0]
[null,null,null,null,0,null,0]
[null,null,null,null,0,null,0]
[null,null,null,null,0,null,0]
[null,null,null,null,0,null,0]
[null,null,null,null,0,null,0]
[null,null,null,null,0,null,0]
[null,null,null,null,0,null,0]
[null,null,null,null,0,null,0]
[null,null,null,null,0,null,0]
[null,null,null,null,0,null,0]
[null,null,null,null,0,null,0]
[null,null,null,null,0,null,0]
[null,null,null,null,0,null,0]
[null,null,null,null,0,null,0]
[null,null,null,null,0,null,0]
[null,null,null,null,0,null,0]
[null,null,null,null,0,null,0]
[null,null,null,null,0,null,0]
[null,null,null,null,0,null,0]
[null,null,null,null,0,null,0]
[null,null,null,null,0,null,0]
[null,null,null,null,0,null,0]
[null,null,null,null,0,null,0]
[null,null,null,null,0,null,0]
[null,null,null,null,0,null,0]
[null,null,null,null,0,null,0]
[null,null,null,null,0,null,0]
[null,null,null,null,0,null,0]
[null,null,null,null,0,null,0]
[null,null,null,null,0,null,0]
[null,null,null,null,0,null,0]
[null,null,null,null,0,null,0]
[null,null,null,null,0,null,0]
[null,null,null,null,0,null,0]
[null,null,null,null,0,null,0]
[null,null,null,null,0,null,0]
[null,null,null,null,0,null,0]
[null,null,null,null,{"$f":"SUM(C67:D67)","v":0},null,{"$f":"SUM(E67,-F67)","v":0}]
[null,null,null,null,0,null,0]
[null,null,null,null,0,null,0]
[null,null,null,null,0,null,0]
[null,null,null,null,0,null,0]
[null,null,null,null,0,null,0]
[null,null,null,null,0,null,0]
[null,null,null,null,0,null,0]
[null,null,null,null,0,null,0]
[null,null,null,null,0,null,0]
[null,null,null,null,0,null,0]
[null,null,null,null,0,null,0]
[null,null,null,null,0,null,0]
[null,null,null,null,0,null,0]
[null,null,null,null,0,null,0]
[null,null,null,null,0,null,0]
[null,null,null,null,0,null,0]
[null,null,null,null,0,null,0]
[null,null,null,null,0,null,0]
[null,null,null,null,0,null,0]
[null,null,null,null,0,null,0]
[null,null,null,null,0,null,0]
[null,null,null,null,0,null,0]
[null,null,null,null,0,null,0]
[null,null,null,null,0,null,0]
[null,null,null,null,0,null,0]
[null,null,null,null,0,null,0]
[null,null,null,null,0,null,0]
[null,null,null,null,0,null,0]
[null,null,null,null,0,null,0]
[null,null,null,null,0,null,0]
[null,null,null,null,0,null,0]
[null,null,null,null,0,null,0]
[null,null,null,null,0,null,0]
[null,null,null,null,0,null,0]
[null,null,null,null,0,null,0]
[null,null,null,null,0,null,0]
[null,null,null,null,0,null,0]
[null,null,null,null,0,null,0]
[null,null,null,null,0,null,0]
[null,null,null,null,0,null,0]
[null,null,null,null,0,null,0]
[null,null,null,null,0,null,0]
[null,null,null,null,0,null,0]
[null,null,null,null,0,null,0]
[null,null,null,null,0,null,0]
[null,null,null,null,0,null,0]
[null,null,null,null,0,null,0]
[null,null,null,null,0,null,0]
[null,null,null,null,0,null,0]
[null,null,null,null,0,null,0]
[null,null,null,null,0,null,0]
[null,null,null,null,0,null,0]
[null,null,null,null,0,null,0]
[null,null,null,null,0,null,0]
[null,null,null,null,0,null,0]
[null,null,null,null,0,null,0]
[null,null,null,null,0,null,0]
[null,null,null,null,0,null,0]
[null,null,null,null,0,null,0]
[null,null,null,null,0,null,0]
[null,null,null,null,0,null,0]
[null,null,null,null,0,null,0]
[null,null,null,null,0,null,0]
[null,null,null,null,{"$f":"SUM(C131:D131)","v":0},null,{"$f":"SUM(E131,-F131)","v":0}]
[null,null,null,null,0,null,0]
[null,null,null,null,0,null,0]
[null,null,null,null,0,null,0]
[null,null,null,null,0,null,0]
[null,null,null,null,0,null,0]
[null,null,null,null,0,null,0]
[null,null,null,null,0,null,0]
[null,null,null,null,0,null,0]
[null,null,null,null,0,null,0]
[null,null,null,null,0,null,0]
[null,null,null,null,0,null,0]
[null,null,null,null,0,null,0]
[null,null,null,null,0,null,0]
[null,null,null,null,0,null,0]
[null,null,null,null,0,null,0]
[null,null,null,null,0,null,0]
[null,null,null,null,0,null,0]
[null,null,null,null,0,null,0]
[null,null,null,null,0,null,0]
[null,null,null,null,0,null,0]
[null,null,null,null,0,null,0]
[null,null,null,null,0,null,0]
[null,null,null,null,0,null,0]
[null,null,null,null,0,null,0]
[null,null,null,null,0,null,0]
[null,null,null,null,0,null,0]
[null,null,null,null,0,null,0]
[null,null,null,null,0,null,0]
[null,null,null,null,0,null,0]
[null,null,null,null,0,null,0]
[null,null,null,null,0,null,0]
[null,null,null,null,0,null,0]
[null,null,null,null,0,null,0]
[null,null,null,null,0,null,0]
[null,null,null,null,0,null,0]
[null,null,null,null,0,null,0]
[null,null,null,null,0,null,0]
[null,null,null,null,0,null,0]
[null,null,null,null,0,null,0]
[null,null,null,null,0,null,0]
[null,null,null,null,0,null,0]
[null,null,null,null,0,null,0]
[null,null,null,null,0,null,0]
[null,null,null,null,0,null,0]
[null,null,null,null,0,null,0]
[null,null,null,null,0,null,0]
[null,null,null,null,0,null,0]
[null,null,null,null,0,null,0]
[null,null,null,null,0,null,0]
[null,null,null,null,0,null,0]
[null,null,null,null,0,null,0]
[null,null,null,null,0,null,0]
[null,null,null,null,0,null,0]
[null,null,null,null,0,null,0]
[null,null,null,null,0,null,0]
[null,null,null,null,0,null,0]
[null,null,null,null,0,null,0]
[null,null,null,null,0,null,0]
[null,null,null,null,0,null,0]
[null,null,null,null,0,null,0]
[null,null,null,null,0,null,0]
[null,null,null,null,0,null,0]
[null,null,null,null,0,null,0]
[null,null,null,null,{"$f":"SUM(C195:D195)","v":0},null,{"$f":"SUM(E195,-F195)","v":0}]
[null,null,null,null,0,null,0]
[null,null,null,null,0,null,0]
[null,null,null,null,0,null,0]
[null,null,null,null,0,null,0]
[null,null,null,null,0,null,0]
[null,null,null,null,0,null,0]
[null,null,null,null,0,null,0]
[null,null,null,null,0,null,0]
[null,null,null,null,0,null,0]
[null,null,null,null,0,null,0]
[null,null,null,null,0,null,0]
[null,null,null,null,0,null,0]
[null,null,null,null,0,null,0]
[null,null,null,null,0,null,0]
[null,null,null,null,0,null,0]
[null,null,null,null,0,null,0]
[null,null,null,null,0,null,0]
[null,null,null,null,0,null,0]
[null,null,null,null,0,null,0]
[null,null,null,null,0,null,0]
[null,null,null,null,0,null,0]

{"sheet":"مارس","index":3,"n_rows":216,"n_cols":9,"rows_kept":216,"cut":false,"hidden":false,"merged":[]}
["الاسم","المهنه","الاساسى","الإضافات","الاجمالى","الحسميات","صافى الراتب","التوقيع","الملاحظات"]
[null,null,null,null,{"$f":"SUM(C2:D2)","v":0},null,{"$f":"SUM(E2,-F2)","v":0}]
[null,null,null,null,{"$f":"SUM(C3:D3)","v":0},null,{"$f":"SUM(E3,-F3)","v":0}]
[null,null,null,null,0,null,0]
[null,null,null,null,0,null,0]
[null,null,null,null,0,null,0]
[null,null,null,null,0,null,0]
[null,null,null,null,0,null,0]
[null,null,null,null,0,null,0]
[null,null,null,null,0,null,0]
[null,null,null,null,0,null,0]
[null,null,null,null,0,null,0]
[null,null,null,null,0,null,0]
[null,null,null,null,0,null,0]
[null,null,null,null,0,null,0]
[null,null,null,null,0,null,0]
[null,null,null,null,0,null,0]
[null,null,null,null,0,null,0]
[null,null,null,null,0,null,0]
[null,null,null,null,0,null,0]
[null,null,null,null,0,null,0]
[null,null,null,null,0,null,0]
[null,null,null,null,0,null,0]
[null,null,null,null,0,null,0]
[null,null,null,null,0,null,0]
[null,null,null,null,0,null,0]
[null,null,null,null,0,null,0]
[null,null,null,null,0,null,0]
[null,null,null,null,0,null,0]
[null,null,null,null,0,null,0]
[null,null,null,null,0,null,0]
[null,null,null,null,0,null,0]
[null,null,null,null,0,null,0]
[null,null,null,null,0,null,0]
[null,null,null,null,0,null,0]
[null,null,null,null,0,null,0]
[null,null,null,null,0,null,0]
[null,null,null,null,0,null,0]
[null,null,null,null,0,null,0]
[null,null,null,null,0,null,0]
[null,null,null,null,0,null,0]
[null,null,null,null,0,null,0]
[null,null,null,null,0,null,0]
[null,null,null,null,0,null,0]
[null,null,null,null,0,null,0]
[null,null,null,null,0,null,0]
[null,null,null,null,0,null,0]
[null,null,null,null,0,null,0]
[null,null,null,null,0,null,0]
[null,null,null,null,0,null,0]
[null,null,null,null,0,null,0]
[null,null,null,null,0,null,0]
[null,null,null,null,0,null,0]
[null,null,null,null,0,null,0]
[null,null,null,null,0,null,0]
[null,null,null,null,0,null,0]
[null,null,null,null,0,null,0]
[null,null,null,null,0,null,0]
[null,null,null,null,0,null,0]
[null,null,null,null,0,null,0]
[null,null,null,null,0,null,0]
[null,null,null,null,0,null,0]
[null,null,null,null,0,null,0]
[null,null,null,null,0,null,0]
[null,null,null,null,0,null,0]
[null,null,null,null,0,null,0]
[null,null,null,null,{"$f":"SUM(C67:D67)","v":0},null,{"$f":"SUM(E67,-F67)","v":0}]
[null,null,null,null,0,null,0]
[null,null,null,null,0,null,0]
[null,null,null,null,0,null,0]
[null,null,null,null,0,null,0]
[null,null,null,null,0,null,0]
[null,null,null,null,0,null,0]
[null,null,null,null,0,null,0]
[null,null,null,null,0,null,0]
[null,null,null,null,0,null,0]
[null,null,null,null,0,null,0]
[null,null,null,null,0,null,0]
[null,null,null,null,0,null,0]
[null,null,null,null,0,null,0]
[null,null,null,null,0,null,0]
[null,null,null,null,0,null,0]
[null,null,null,null,0,null,0]
[null,null,null,null,0,null,0]
[null,null,null,null,0,null,0]
[null,null,null,null,0,null,0]
[null,null,null,null,0,null,0]
[null,null,null,null,0,null,0]
[null,null,null,null,0,null,0]
[null,null,null,null,0,null,0]
[null,null,null,null,0,null,0]
[null,null,null,null,0,null,0]
[null,null,null,null,0,null,0]
[null,null,null,null,0,null,0]
[null,null,null,null,0,null,0]
[null,null,null,null,0,null,0]
[null,null,null,null,0,null,0]
[null,null,null,null,0,null,0]
[null,null,null,null,0,null,0]
[null,null,null,null,0,null,0]
[null,null,null,null,0,null,0]
[null,null,null,null,0,null,0]
[null,null,null,null,0,null,0]
[null,null,null,null,0,null,0]
[null,null,null,null,0,null,0]
[null,null,null,null,0,null,0]
[null,null,null,null,0,null,0]
[null,null,null,null,0,null,0]
[null,null,null,null,0,null,0]
[null,null,null,null,0,null,0]
[null,null,null,null,0,null,0]
[null,null,null,null,0,null,0]
[null,null,null,null,0,null,0]
[null,null,null,null,0,null,0]
[null,null,null,null,0,null,0]
[null,null,null,null,0,null,0]
[null,null,null,null,0,null,0]
[null,null,null,null,0,null,0]
[null,null,null,null,0,null,0]
[null,null,null,null,0,null,0]
[null,null,null,null,0,null,0]
[null,null,null,null,0,null,0]
[null,null,null,null,0,null,0]
[null,null,null,null,0,null,0]
[null,null,null,null,0,null,0]
[null,null,null,null,0,null,0]
[null,null,null,null,0,null,0]
[null,null,null,null,0,null,0]
[null,null,null,null,0,null,0]
[null,null,null,null,0,null,0]
[null,null,null,null,{"$f":"SUM(C131:D131)","v":0},null,{"$f":"SUM(E131,-F131)","v":0}]
[null,null,null,null,0,null,0]
[null,null,null,null,0,null,0]
[null,null,null,null,0,null,0]
[null,null,null,null,0,null,0]
[null,null,null,null,0,null,0]
[null,null,null,null,0,null,0]
[null,null,null,null,0,null,0]
[null,null,null,null,0,null,0]
[null,null,null,null,0,null,0]
[null,null,null,null,0,null,0]
[null,null,null,null,0,null,0]
[null,null,null,null,0,null,0]
[null,null,null,null,0,null,0]
[null,null,null,null,0,null,0]
[null,null,null,null,0,null,0]
[null,null,null,null,0,null,0]
[null,null,null,null,0,null,0]
[null,null,null,null,0,null,0]
[null,null,null,null,0,null,0]
[null,null,null,null,0,null,0]
[null,null,null,null,0,null,0]
[null,null,null,null,0,null,0]
[null,null,null,null,0,null,0]
[null,null,null,null,0,null,0]
[null,null,null,null,0,null,0]
[null,null,null,null,0,null,0]
[null,null,null,null,0,null,0]
[null,null,null,null,0,null,0]
[null,null,null,null,0,null,0]
[null,null,null,null,0,null,0]
[null,null,null,null,0,null,0]
[null,null,null,null,0,null,0]
[null,null,null,null,0,null,0]
[null,null,null,null,0,null,0]
[null,null,null,null,0,null,0]
[null,null,null,null,0,null,0]
[null,null,null,null,0,null,0]
[null,null,null,null,0,null,0]
[null,null,null,null,0,null,0]
[null,null,null,null,0,null,0]
[null,null,null,null,0,null,0]
[null,null,null,null,0,null,0]
[null,null,null,null,0,null,0]
[null,null,null,null,0,null,0]
[null,null,null,null,0,null,0]
[null,null,null,null,0,null,0]
[null,null,null,null,0,null,0]
[null,null,null,null,0,null,0]
[null,null,null,null,0,null,0]
[null,null,null,null,0,null,0]
[null,null,null,null,0,null,0]
[null,null,null,null,0,null,0]
[null,null,null,null,0,null,0]
[null,null,null,null,0,null,0]
[null,null,null,null,0,null,0]
[null,null,null,null,0,null,0]
[null,null,null,null,0,null,0]
[null,null,null,null,0,null,0]
[null,null,null,null,0,null,0]
[null,null,null,null,0,null,0]
[null,null,null,null,0,null,0]
[null,null,null,null,0,null,0]
[null,null,null,null,0,null,0]
[null,null,null,null,{"$f":"SUM(C195:D195)","v":0},null,{"$f":"SUM(E195,-F195)","v":0}]
[null,null,null,null,0,null,0]
[null,null,null,null,0,null,0]
[null,null,null,null,0,null,0]
[null,null,null,null,0,null,0]
[null,null,null,null,0,null,0]
[null,null,null,null,0,null,0]
[null,null,null,null,0,null,0]
[null,null,null,null,0,null,0]
[null,null,null,null,0,null,0]
[null,null,null,null,0,null,0]
[null,null,null,null,0,null,0]
[null,null,null,null,0,null,0]
[null,null,null,null,0,null,0]
[null,null,null,null,0,null,0]
[null,null,null,null,0,null,0]
[null,null,null,null,0,null,0]
[null,null,null,null,0,null,0]
[null,null,null,null,0,null,0]
[null,null,null,null,0,null,0]
[null,null,null,null,0,null,0]
[null,null,null,null,0,null,0]

{"sheet":"ابريل","index":4,"n_rows":216,"n_cols":9,"rows_kept":216,"cut":false,"hidden":false,"merged":[]}
["الاسم","المهنه","الاساسى","الإضافات","الاجمالى","الحسميات","صافى الراتب","التوقيع","الملاحظات"]
["Fadi","Prof",100,50,{"$f":"SUM(C2:D2)","v":150},3,{"$f":"SUM(E2,-F2)","v":147},null,"sae"]
[null,null,null,null,{"$f":"SUM(C3:D3)","v":0},null,{"$f":"SUM(E3,-F3)","v":0}]
[null,null,null,null,0,null,0]
[null,null,null,null,0,null,0]
[null,null,null,null,0,null,0]
[null,null,null,null,0,null,0]
[null,null,null,null,0,null,0]
[null,null,null,null,0,null,0]
[null,null,null,null,0,null,0]
[null,null,null,null,0,null,0]
[null,null,null,null,0,null,0]
[null,null,null,null,0,null,0]
[null,null,null,null,0,null,0]
[null,null,null,null,0,null,0]
[null,null,null,null,0,null,0]
[null,null,null,null,0,null,0]
[null,null,null,null,0,null,0]
[null,null,null,null,0,null,0]
[null,null,null,null,0,null,0]
[null,null,null,null,0,null,0]
[null,null,null,null,0,null,0]
[null,null,null,null,0,null,0]
[null,null,null,null,0,null,0]
[null,null,null,null,0,null,0]
[null,null,null,null,0,null,0]
[null,null,null,null,0,null,0]
[null,null,null,null,0,null,0]
[null,null,null,null,0,null,0]
[null,null,null,null,0,null,0]
[null,null,null,null,0,null,0]
[null,null,null,null,0,null,0]
[null,null,null,null,0,null,0]
[null,null,null,null,0,null,0]
[null,null,null,null,0,null,0]
[null,null,null,null,0,null,0]
[null,null,null,null,0,null,0]
[null,null,null,null,0,null,0]
[null,null,null,null,0,null,0]
[null,null,null,null,0,null,0]
[null,null,null,null,0,null,0]
[null,null,null,null,0,null,0]
[null,null,null,null,0,null,0]
[null,null,null,null,0,null,0]
[null,null,null,null,0,null,0]
[null,null,null,null,0,null,0]
[null,null,null,null,0,null,0]
[null,null,null,null,0,null,0]
[null,null,null,null,0,null,0]
[null,null,null,null,0,null,0]
[null,null,null,null,0,null,0]
[null,null,null,null,0,null,0]
[null,null,null,null,0,null,0]
[null,null,null,null,0,null,0]
[null,null,null,null,0,null,0]
[null,null,null,null,0,null,0]
[null,null,null,null,0,null,0]
[null,null,null,null,0,null,0]
[null,null,null,null,0,null,0]
[null,null,null,null,0,null,0]
[null,null,null,null,0,null,0]
[null,null,null,null,0,null,0]
[null,null,null,null,0,null,0]
[null,null,null,null,0,null,0]
[null,null,null,null,0,null,0]
[null,null,null,null,0,null,0]
[null,null,null,null,{"$f":"SUM(C67:D67)","v":0},null,{"$f":"SUM(E67,-F67)","v":0}]
[null,null,null,null,0,null,0]
[null,null,null,null,0,null,0]
[null,null,null,null,0,null,0]
[null,null,null,null,0,null,0]
[null,null,null,null,0,null,0]
[null,null,null,null,0,null,0]
[null,null,null,null,0,null,0]
[null,null,null,null,0,null,0]
[null,null,null,null,0,null,0]
[null,null,null,null,0,null,0]
[null,null,null,null,0,null,0]
[null,null,null,null,0,null,0]
[null,null,null,null,0,null,0]
[null,null,null,null,0,null,0]
[null,null,null,null,0,null,0]
[null,null,null,null,0,null,0]
[null,null,null,null,0,null,0]
[null,null,null,null,0,null,0]
[null,null,null,null,0,null,0]
[null,null,null,null,0,null,0]
[null,null,null,null,0,null,0]
[null,null,null,null,0,null,0]
[null,null,null,null,0,null,0]
[null,null,null,null,0,null,0]
[null,null,null,null,0,null,0]
[null,null,null,null,0,null,0]
[null,null,null,null,0,null,0]
[null,null,null,null,0,null,0]
[null,null,null,null,0,null,0]
[null,null,null,null,0,null,0]
[null,null,null,null,0,null,0]
[null,null,null,null,0,null,0]
[null,null,null,null,0,null,0]
[null,null,null,null,0,null,0]
[null,null,null,null,0,null,0]
[null,null,null,null,0,null,0]
[null,null,null,null,0,null,0]
[null,null,null,null,0,null,0]
[null,null,null,null,0,null,0]
[null,null,null,null,0,null,0]
[null,null,null,null,0,null,0]
[null,null,null,null,0,null,0]
[null,null,null,null,0,null,0]
[null,null,null,null,0,null,0]
[null,null,null,null,0,null,0]
[null,null,null,null,0,null,0]
[null,null,null,null,0,null,0]
[null,null,null,null,0,null,0]
[null,null,null,null,0,null,0]
[null,null,null,null,0,null,0]
[null,null,null,null,0,null,0]
[null,null,null,null,0,null,0]
[null,null,null,null,0,null,0]
[null,null,null,null,0,null,0]
[null,null,null,null,0,null,0]
[null,null,null,null,0,null,0]
[null,null,null,null,0,null,0]
[null,null,null,null,0,null,0]
[null,null,null,null,0,null,0]
[null,null,null,null,0,null,0]
[null,null,null,null,0,null,0]
[null,null,null,null,0,null,0]
[null,null,null,null,0,null,0]
[null,null,null,null,{"$f":"SUM(C131:D131)","v":0},null,{"$f":"SUM(E131,-F131)","v":0}]
[null,null,null,null,0,null,0]
[null,null,null,null,0,null,0]
[null,null,null,null,0,null,0]
[null,null,null,null,0,null,0]
[null,null,null,null,0,null,0]
[null,null,null,null,0,null,0]
[null,null,null,null,0,null,0]
[null,null,null,null,0,null,0]
[null,null,null,null,0,null,0]
[null,null,null,null,0,null,0]
[null,null,null,null,0,null,0]
[null,null,null,null,0,null,0]
[null,null,null,null,0,null,0]
[null,null,null,null,0,null,0]
[null,null,null,null,0,null,0]
[null,null,null,null,0,null,0]
[null,null,null,null,0,null,0]
[null,null,null,null,0,null,0]
[null,null,null,null,0,null,0]
[null,null,null,null,0,null,0]
[null,null,null,null,0,null,0]
[null,null,null,null,0,null,0]
[null,null,null,null,0,null,0]
[null,null,null,null,0,null,0]
[null,null,null,null,0,null,0]
[null,null,null,null,0,null,0]
[null,null,null,null,0,null,0]
[null,null,null,null,0,null,0]
[null,null,null,null,0,null,0]
[null,null,null,null,0,null,0]
[null,null,null,null,0,null,0]
[null,null,null,null,0,null,0]
[null,null,null,null,0,null,0]
[null,null,null,null,0,null,0]
[null,null,null,null,0,null,0]
[null,null,null,null,0,null,0]
[null,null,null,null,0,null,0]
[null,null,null,null,0,null,0]
[null,null,null,null,0,null,0]
[null,null,null,null,0,null,0]
[null,null,null,null,0,null,0]
[null,null,null,null,0,null,0]
[null,null,null,null,0,null,0]
[null,null,null,null,0,null,0]
[null,null,null,null,0,null,0]
[null,null,null,null,0,null,0]
[null,null,null,null,0,null,0]
[null,null,null,null,0,null,0]
[null,null,null,null,0,null,0]
[null,null,null,null,0,null,0]
[null,null,null,null,0,null,0]
[null,null,null,null,0,null,0]
[null,null,null,null,0,null,0]
[null,null,null,null,0,null,0]
[null,null,null,null,0,null,0]
[null,null,null,null,0,null,0]
[null,null,null,null,0,null,0]
[null,null,null,null,0,null,0]
[null,null,null,null,0,null,0]
[null,null,null,null,0,null,0]
[null,null,null,null,0,null,0]
[null,null,null,null,0,null,0]
[null,null,null,null,0,null,0]
[null,null,null,null,{"$f":"SUM(C195:D195)","v":0},null,{"$f":"SUM(E195,-F195)","v":0}]
[null,null,null,null,0,null,0]
[null,null,null,null,0,null,0]
[null,null,null,null,0,null,0]
[null,null,null,null,0,null,0]
[null,null,null,null,0,null,0]
[null,null,null,null,0,null,0]
[null,null,null,null,0,null,0]
[null,null,null,null,0,null,0]
[null,null,null,null,0,null,0]
[null,null,null,null,0,null,0]
[null,null,null,null,0,null,0]
[null,null,null,null,0,null,0]
[null,null,null,null,0,null,0]
[null,null,null,null,0,null,0]
[null,null,null,null,0,null,0]
[null,null,null,null,0,null,0]
[null,null,null,null,0,null,0]
[null,null,null,null,0,null,0]
[null,null,null,null,0,null,0]
[null,null,null,null,0,null,0]
[null,null,null,null,0,null,0]

{"sheet":"مايو","index":5,"n_rows":216,"n_cols":9,"rows_kept":216,"cut":false,"hidden":false,"merged":[]}
["الاسم","المهنه","الاساسى","الإضافات","الاجمالى","الحسميات","صافى الراتب","التوقيع","الملاحظات"]
[null,null,null,null,{"$f":"SUM(C2:D2)","v":0},null,{"$f":"SUM(E2,-F2)","v":0}]
[null,null,null,null,{"$f":"SUM(C3:D3)","v":0},null,{"$f":"SUM(E3,-F3)","v":0}]
[null,null,null,null,0,null,0]
[null,null,null,null,0,null,0]
[null,null,null,null,0,null,0]
[null,null,null,null,0,null,0]
[null,null,null,null,0,null,0]
[null,null,null,null,0,null,0]
[null,null,null,null,0,null,0]
[null,null,null,null,0,null,0]
[null,null,null,null,0,null,0]
[null,null,null,null,0,null,0]
[null,null,null,null,0,null,0]
[null,null,null,null,0,null,0]
[null,null,null,null,0,null,0]
[null,null,null,null,0,null,0]
[null,null,null,null,0,null,0]
[null,null,null,null,0,null,0]
[null,null,null,null,0,null,0]
[null,null,null,null,0,null,0]
[null,null,null,null,0,null,0]
[null,null,null,null,0,null,0]
[null,null,null,null,0,null,0]
[null,null,null,null,0,null,0]
[null,null,null,null,0,null,0]
[null,null,null,null,0,null,0]
[null,null,null,null,0,null,0]
[null,null,null,null,0,null,0]
[null,null,null,null,0,null,0]
[null,null,null,null,0,null,0]
[null,null,null,null,0,null,0]
[null,null,null,null,0,null,0]
[null,null,null,null,0,null,0]
[null,null,null,null,0,null,0]
[null,null,null,null,0,null,0]
[null,null,null,null,0,null,0]
[null,null,null,null,0,null,0]
[null,null,null,null,0,null,0]
[null,null,null,null,0,null,0]
[null,null,null,null,0,null,0]
[null,null,null,null,0,null,0]
[null,null,null,null,0,null,0]
[null,null,null,null,0,null,0]
[null,null,null,null,0,null,0]
[null,null,null,null,0,null,0]
[null,null,null,null,0,null,0]
[null,null,null,null,0,null,0]
[null,null,null,null,0,null,0]
[null,null,null,null,0,null,0]
[null,null,null,null,0,null,0]
[null,null,null,null,0,null,0]
[null,null,null,null,0,null,0]
[null,null,null,null,0,null,0]
[null,null,null,null,0,null,0]
[null,null,null,null,0,null,0]
[null,null,null,null,0,null,0]
[null,null,null,null,0,null,0]
[null,null,null,null,0,null,0]
[null,null,null,null,0,null,0]
[null,null,null,null,0,null,0]
[null,null,null,null,0,null,0]
[null,null,null,null,0,null,0]
[null,null,null,null,0,null,0]
[null,null,null,null,0,null,0]
[null,null,null,null,0,null,0]
[null,null,null,null,{"$f":"SUM(C67:D67)","v":0},null,{"$f":"SUM(E67,-F67)","v":0}]
[null,null,null,null,0,null,0]
[null,null,null,null,0,null,0]
[null,null,null,null,0,null,0]
[null,null,null,null,0,null,0]
[null,null,null,null,0,null,0]
[null,null,null,null,0,null,0]
[null,null,null,null,0,null,0]
[null,null,null,null,0,null,0]
[null,null,null,null,0,null,0]
[null,null,null,null,0,null,0]
[null,null,null,null,0,null,0]
[null,null,null,null,0,null,0]
[null,null,null,null,0,null,0]
[null,null,null,null,0,null,0]
[null,null,null,null,0,null,0]
[null,null,null,null,0,null,0]
[null,null,null,null,0,null,0]
[null,null,null,null,0,null,0]
[null,null,null,null,0,null,0]
[null,null,null,null,0,null,0]
[null,null,null,null,0,null,0]
[null,null,null,null,0,null,0]
[null,null,null,null,0,null,0]
[null,null,null,null,0,null,0]
[null,null,null,null,0,null,0]
[null,null,null,null,0,null,0]
[null,null,null,null,0,null,0]
[null,null,null,null,0,null,0]
[null,null,null,null,0,null,0]
[null,null,null,null,0,null,0]
[null,null,null,null,0,null,0]
[null,null,null,null,0,null,0]
[null,null,null,null,0,null,0]
[null,null,null,null,0,null,0]
[null,null,null,null,0,null,0]
[null,null,null,null,0,null,0]
[null,null,null,null,0,null,0]
[null,null,null,null,0,null,0]
[null,null,null,null,0,null,0]
[null,null,null,null,0,null,0]
[null,null,null,null,0,null,0]
[null,null,null,null,0,null,0]
[null,null,null,null,0,null,0]
[null,null,null,null,0,null,0]
[null,null,null,null,0,null,0]
[null,null,null,null,0,null,0]
[null,null,null,null,0,null,0]
[null,null,null,null,0,null,0]
[null,null,null,null,0,null,0]
[null,null,null,null,0,null,0]
[null,null,null,null,0,null,0]
[null,null,null,null,0,null,0]
[null,null,null,null,0,null,0]
[null,null,null,null,0,null,0]
[null,null,null,null,0,null,0]
[null,null,null,null,0,null,0]
[null,null,null,null,0,null,0]
[null,null,null,null,0,null,0]
[null,null,null,null,0,null,0]
[null,null,null,null,0,null,0]
[null,null,null,null,0,null,0]
[null,null,null,null,0,null,0]
[null,null,null,null,0,null,0]
[null,null,null,null,{"$f":"SUM(C131:D131)","v":0},null,{"$f":"SUM(E131,-F131)","v":0}]
[null,null,null,null,0,null,0]
[null,null,null,null,0,null,0]
[null,null,null,null,0,null,0]
[null,null,null,null,0,null,0]
[null,null,null,null,0,null,0]
[null,null,null,null,0,null,0]
[null,null,null,null,0,null,0]
[null,null,null,null,0,null,0]
[null,null,null,null,0,null,0]
[null,null,null,null,0,null,0]
[null,null,null,null,0,null,0]
[null,null,null,null,0,null,0]
[null,null,null,null,0,null,0]
[null,null,null,null,0,null,0]
[null,null,null,null,0,null,0]
[null,null,null,null,0,null,0]
[null,null,null,null,0,null,0]
[null,null,null,null,0,null,0]
[null,null,null,null,0,null,0]
[null,null,null,null,0,null,0]
[null,null,null,null,0,null,0]
[null,null,null,null,0,null,0]
[null,null,null,null,0,null,0]
[null,null,null,null,0,null,0]
[null,null,null,null,0,null,0]
[null,null,null,null,0,null,0]
[null,null,null,null,0,null,0]
[null,null,null,null,0,null,0]
[null,null,null,null,0,null,0]
[null,null,null,null,0,null,0]
[null,null,null,null,0,null,0]
[null,null,null,null,0,null,0]
[null,null,null,null,0,null,0]
[null,null,null,null,0,null,0]
[null,null,null,null,0,null,0]
[null,null,null,null,0,null,0]
[null,null,null,null,0,null,0]
[null,null,null,null,0,null,0]
[null,null,null,null,0,null,0]
[null,null,null,null,0,null,0]
[null,null,null,null,0,null,0]
[null,null,null,null,0,null,0]
[null,null,null,null,0,null,0]
[null,null,null,null,0,null,0]
[null,null,null,null,0,null,0]
[null,null,null,null,0,null,0]
[null,null,null,null,0,null,0]
[null,null,null,null,0,null,0]
[null,null,null,null,0,null,0]
[null,null,null,null,0,null,0]
[null,null,null,null,0,null,0]
[null,null,null,null,0,null,0]
[null,null,null,null,0,null,0]
[null,null,null,null,0,null,0]
[null,null,null,null,0,null,0]
[null,null,null,null,0,null,0]
[null,null,null,null,0,null,0]
[null,null,null,null,0,null,0]
[null,null,null,null,0,null,0]
[null,null,null,null,0,null,0]
[null,null,null,null,0,null,0]
[null,null,null,null,0,null,0]
[null,null,null,null,0,null,0]
[null,null,null,null,{"$f":"SUM(C195:D195)","v":0},null,{"$f":"SUM(E195,-F195)","v":0}]
[null,null,null,null,0,null,0]
[null,null,null,null,0,null,0]
[null,null,null,null,0,null,0]
[null,null,null,null,0,null,0]
[null,null,null,null,0,null,0]
[null,null,null,null,0,null,0]
[null,null,null,null,0,null,0]
[null,null,null,null,0,null,0]
[null,null,null,null,0,null,0]
[null,null,null,null,0,null,0]
[null,null,null,null,0,null,0]
[null,null,null,null,0,null,0]
[null,null,null,null,0,null,0]
[null,null,null,null,0,null,0]
[null,null,null,null,0,null,0]
[null,null,null,null,0,null,0]
[null,null,null,null,0,null,0]
[null,null,null,null,0,null,0]
[null,null,null,null,0,null,0]
[null,null,null,null,0,null,0]
[null,null,null,null,0,null,0]

{"sheet":"يونيو","index":6,"n_rows":216,"n_cols":9,"rows_kept":216,"cut":false,"hidden":false,"merged":[]}
["الاسم","المهنه","الاساسى","الإضافات","الاجمالى","الحسميات","صافى الراتب","التوقيع","الملاحظات"]
[null,null,null,null,{"$f":"SUM(C2:D2)","v":0},null,{"$f":"SUM(E2,-F2)","v":0}]
[null,null,null,null,{"$f":"SUM(C3:D3)","v":0},null,{"$f":"SUM(E3,-F3)","v":0}]
[null,null,null,null,0,null,0]
[null,null,null,null,0,null,0]
[null,null,null,null,0,null,0]
[null,null,null,null,0,null,0]
[null,null,null,null,0,null,0]
[null,null,null,null,0,null,0]
[null,null,null,null,0,null,0]
[null,null,null,null,0,null,0]
[null,null,null,null,0,null,0]
[null,null,null,null,0,null,0]
[null,null,null,null,0,null,0]
[null,null,null,null,0,null,0]
[null,null,null,null,0,null,0]
[null,null,null,null,0,null,0]
[null,null,null,null,0,null,0]
[null,null,null,null,0,null,0]
[null,null,null,null,0,null,0]
[null,null,null,null,0,null,0]
[null,null,null,null,0,null,0]
[null,null,null,null,0,null,0]
[null,null,null,null,0,null,0]
[null,null,null,null,0,null,0]
[null,null,null,null,0,null,0]
[null,null,null,null,0,null,0]
[null,null,null,null,0,null,0]
[null,null,null,null,0,null,0]
[null,null,null,null,0,null,0]
[null,null,null,null,0,null,0]
[null,null,null,null,0,null,0]
[null,null,null,null,0,null,0]
[null,null,null,null,0,null,0]
[null,null,null,null,0,null,0]
[null,null,null,null,0,null,0]
[null,null,null,null,0,null,0]
[null,null,null,null,0,null,0]
[null,null,null,null,0,null,0]
[null,null,null,null,0,null,0]
[null,null,null,null,0,null,0]
[null,null,null,null,0,null,0]
[null,null,null,null,0,null,0]
[null,null,null,null,0,null,0]
[null,null,null,null,0,null,0]
[null,null,null,null,0,null,0]
[null,null,null,null,0,null,0]
[null,null,null,null,0,null,0]
[null,null,null,null,0,null,0]
[null,null,null,null,0,null,0]
[null,null,null,null,0,null,0]
[null,null,null,null,0,null,0]
[null,null,null,null,0,null,0]
[null,null,null,null,0,null,0]
[null,null,null,null,0,null,0]
[null,null,null,null,0,null,0]
[null,null,null,null,0,null,0]
[null,null,null,null,0,null,0]
[null,null,null,null,0,null,0]
[null,null,null,null,0,null,0]
[null,null,null,null,0,null,0]
[null,null,null,null,0,null,0]
[null,null,null,null,0,null,0]
[null,null,null,null,0,null,0]
[null,null,null,null,0,null,0]
[null,null,null,null,0,null,0]
[null,null,null,null,{"$f":"SUM(C67:D67)","v":0},null,{"$f":"SUM(E67,-F67)","v":0}]
[null,null,null,null,0,null,0]
[null,null,null,null,0,null,0]
[null,null,null,null,0,null,0]
[null,null,null,null,0,null,0]
[null,null,null,null,0,null,0]
[null,null,null,null,0,null,0]
[null,null,null,null,0,null,0]
[null,null,null,null,0,null,0]
[null,null,null,null,0,null,0]
[null,null,null,null,0,null,0]
[null,null,null,null,0,null,0]
[null,null,null,null,0,null,0]
[null,null,null,null,0,null,0]
[null,null,null,null,0,null,0]
[null,null,null,null,0,null,0]
[null,null,null,null,0,null,0]
[null,null,null,null,0,null,0]
[null,null,null,null,0,null,0]
[null,null,null,null,0,null,0]
[null,null,null,null,0,null,0]
[null,null,null,null,0,null,0]
[null,null,null,null,0,null,0]
[null,null,null,null,0,null,0]
[null,null,null,null,0,null,0]
[null,null,null,null,0,null,0]
[null,null,null,null,0,null,0]
[null,null,null,null,0,null,0]
[null,null,null,null,0,null,0]
[null,null,null,null,0,null,0]
[null,null,null,null,0,null,0]
[null,null,null,null,0,null,0]
[null,null,null,null,0,null,0]
[null,null,null,null,0,null,0]
[null,null,null,null,0,null,0]
[null,null,null,null,0,null,0]
[null,null,null,null,0,null,0]
[null,null,null,null,0,null,0]
[null,null,null,null,0,null,0]
[null,null,null,null,0,null,0]
[null,null,null,null,0,null,0]
[null,null,null,null,0,null,0]
[null,null,null,null,0,null,0]
[null,null,null,null,0,null,0]
[null,null,null,null,0,null,0]
[null,null,null,null,0,null,0]
[null,null,null,null,0,null,0]
[null,null,null,null,0,null,0]
[null,null,null,null,0,null,0]
[null,null,null,null,0,null,0]
[null,null,null,null,0,null,0]
[null,null,null,null,0,null,0]
[null,null,null,null,0,null,0]
[null,null,null,null,0,null,0]
[null,null,null,null,0,null,0]
[null,null,null,null,0,null,0]
[null,null,null,null,0,null,0]
[null,null,null,null,0,null,0]
[null,null,null,null,0,null,0]
[null,null,null,null,0,null,0]
[null,null,null,null,0,null,0]
[null,null,null,null,0,null,0]
[null,null,null,null,0,null,0]
[null,null,null,null,0,null,0]
[null,null,null,null,{"$f":"SUM(C131:D131)","v":0},null,{"$f":"SUM(E131,-F131)","v":0}]
[null,null,null,null,0,null,0]
[null,null,null,null,0,null,0]
[null,null,null,null,0,null,0]
[null,null,null,null,0,null,0]
[null,null,null,null,0,null,0]
[null,null,null,null,0,null,0]
[null,null,null,null,0,null,0]
[null,null,null,null,0,null,0]
[null,null,null,null,0,null,0]
[null,null,null,null,0,null,0]
[null,null,null,null,0,null,0]
[null,null,null,null,0,null,0]
[null,null,null,null,0,null,0]
[null,null,null,null,0,null,0]
[null,null,null,null,0,null,0]
[null,null,null,null,0,null,0]
[null,null,null,null,0,null,0]
[null,null,null,null,0,null,0]
[null,null,null,null,0,null,0]
[null,null,null,null,0,null,0]
[null,null,null,null,0,null,0]
[null,null,null,null,0,null,0]
[null,null,null,null,0,null,0]
[null,null,null,null,0,null,0]
[null,null,null,null,0,null,0]
[null,null,null,null,0,null,0]
[null,null,null,null,0,null,0]
[null,null,null,null,0,null,0]
[null,null,null,null,0,null,0]
[null,null,null,null,0,null,0]
[null,null,null,null,0,null,0]
[null,null,null,null,0,null,0]
[null,null,null,null,0,null,0]
[null,null,null,null,0,null,0]
[null,null,null,null,0,null,0]
[null,null,null,null,0,null,0]
[null,null,null,null,0,null,0]
[null,null,null,null,0,null,0]
[null,null,null,null,0,null,0]
[null,null,null,null,0,null,0]
[null,null,null,null,0,null,0]
[null,null,null,null,0,null,0]
[null,null,null,null,0,null,0]
[null,null,null,null,0,null,0]
[null,null,null,null,0,null,0]
[null,null,null,null,0,null,0]
[null,null,null,null,0,null,0]
[null,null,null,null,0,null,0]
[null,null,null,null,0,null,0]
[null,null,null,null,0,null,0]
[null,null,null,null,0,null,0]
[null,null,null,null,0,null,0]
[null,null,null,null,0,null,0]
[null,null,null,null,0,null,0]
[null,null,null,null,0,null,0]
[null,null,null,null,0,null,0]
[null,null,null,null,0,null,0]
[null,null,null,null,0,null,0]
[null,null,null,null,0,null,0]
[null,null,null,null,0,null,0]
[null,null,null,null,0,null,0]
[null,null,null,null,0,null,0]
[null,null,null,null,0,null,0]
[null,null,null,null,{"$f":"SUM(C195:D195)","v":0},null,{"$f":"SUM(E195,-F195)","v":0}]
[null,null,null,null,0,null,0]
[null,null,null,null,0,null,0]
[null,null,null,null,0,null,0]
[null,null,null,null,0,null,0]
[null,null,null,null,0,null,0]
[null,null,null,null,0,null,0]
[null,null,null,null,0,null,0]
[null,null,null,null,0,null,0]
[null,null,null,null,0,null,0]
[null,null,null,null,0,null,0]
[null,null,null,null,0,null,0]
[null,null,null,null,0,null,0]
[null,null,null,null,0,null,0]
[null,null,null,null,0,null,0]
[null,null,null,null,0,null,0]
[null,null,null,null,0,null,0]
[null,null,null,null,0,null,0]
[null,null,null,null,0,null,0]
[null,null,null,null,0,null,0]
[null,null,null,null,0,null,0]
[null,null,null,null,0,null,0]

{"sheet":"يوليو","index":7,"n_rows":216,"n_cols":9,"rows_kept":216,"cut":false,"hidden":false,"merged":[]}
["الاسم","المهنه","الاساسى","الإضافات","الاجمالى","الحسميات","صافى الراتب","التوقيع","الملاحظات"]
[44,22,22,22,{"$f":"SUM(C2:D2)","v":44},22,{"$f":"SUM(E2,-F2)","v":22},22,222]
[161,125,130,140,{"$f":"SUM(C3:D3)","v":270},"تاالالليسلا ءؤغ",{"$f":"SUM(E3,-F3)","v":{"$error":"#VALUE!"}},18,"شسشسشثفتت"]
[null,null,null,null,0,null,0]
[null,null,null,null,0,null,0]
[null,null,null,null,0,null,0]
[null,null,null,null,0,null,0]
[null,null,null,null,0,null,0]
[null,null,null,null,0,null,0]
[null,null,null,null,0,null,0]
[null,null,null,null,0,null,0]
[null,null,null,null,0,null,0]
[null,null,null,null,0,null,0]
[null,null,null,null,0,null,0]
[null,null,null,null,0,null,0]
[null,null,null,null,0,null,0]
[null,null,null,null,0,null,0]
[null,null,null,null,0,null,0]
[null,null,null,null,0,null,0]
[null,null,null,null,0,null,0]
[null,null,null,null,0,null,0]
[null,null,null,null,0,null,0]
[null,null,null,null,0,null,0]
[null,null,null,null,0,null,0]
[null,null,null,null,0,null,0]
[null,null,null,null,0,null,0]
[null,null,null,null,0,null,0]
[null,null,null,null,0,null,0]
[null,null,null,null,0,null,0]
[null,null,null,null,0,null,0]
[null,null,null,null,0,null,0]
[null,null,null,null,0,null,0]
[null,null,null,null,0,null,0]
[null,null,null,null,0,null,0]
[null,null,null,null,0,null,0]
[null,null,null,null,0,null,0]
[null,null,null,null,0,null,0]
[null,null,null,null,0,null,0]
[null,null,null,null,0,null,0]
[null,null,null,null,0,null,0]
[null,null,null,null,0,null,0]
[null,null,null,null,0,null,0]
[null,null,null,null,0,null,0]
[null,null,null,null,0,null,0]
[null,null,null,null,0,null,0]
[null,null,null,null,0,null,0]
[null,null,null,null,0,null,0]
[null,null,null,null,0,null,0]
[null,null,null,null,0,null,0]
[null,null,null,null,0,null,0]
[null,null,null,null,0,null,0]
[null,null,null,null,0,null,0]
[null,null,null,null,0,null,0]
[null,null,null,null,0,null,0]
[null,null,null,null,0,null,0]
[null,null,null,null,0,null,0]
[null,null,null,null,0,null,0]
[null,null,null,null,0,null,0]
[null,null,null,null,0,null,0]
[null,null,null,null,0,null,0]
[null,null,null,null,0,null,0]
[null,null,null,null,0,null,0]
[null,null,null,null,0,null,0]
[null,null,null,null,0,null,0]
[null,null,null,null,0,null,0]
[null,null,null,null,0,null,0]
[null,null,null,null,{"$f":"SUM(C67:D67)","v":0},null,{"$f":"SUM(E67,-F67)","v":0}]
[null,null,null,null,0,null,0]
[null,null,null,null,0,null,0]
[null,null,null,null,0,null,0]
[null,null,null,null,0,null,0]
[null,null,null,null,0,null,0]
[null,null,null,null,0,null,0]
[null,null,null,null,0,null,0]
[null,null,null,null,0,null,0]
[null,null,null,null,0,null,0]
[null,null,null,null,0,null,0]
[null,null,null,null,0,null,0]
[null,null,null,null,0,null,0]
[null,null,null,null,0,null,0]
[null,null,null,null,0,null,0]
[null,null,null,null,0,null,0]
[null,null,null,null,0,null,0]
[null,null,null,null,0,null,0]
[null,null,null,null,0,null,0]
[null,null,null,null,0,null,0]
[null,null,null,null,0,null,0]
[null,null,null,null,0,null,0]
[null,null,null,null,0,null,0]
[null,null,null,null,0,null,0]
[null,null,null,null,0,null,0]
[null,null,null,null,0,null,0]
[null,null,null,null,0,null,0]
[null,null,null,null,0,null,0]
[null,null,null,null,0,null,0]
[null,null,null,null,0,null,0]
[null,null,null,null,0,null,0]
[null,null,null,null,0,null,0]
[null,null,null,null,0,null,0]
[null,null,null,null,0,null,0]
[null,null,null,null,0,null,0]
[null,null,null,null,0,null,0]
[null,null,null,null,0,null,0]
[null,null,null,null,0,null,0]
[null,null,null,null,0,null,0]
[null,null,null,null,0,null,0]
[null,null,null,null,0,null,0]
[null,null,null,null,0,null,0]
[null,null,null,null,0,null,0]
[null,null,null,null,0,null,0]
[null,null,null,null,0,null,0]
[null,null,null,null,0,null,0]
[null,null,null,null,0,null,0]
[null,null,null,null,0,null,0]
[null,null,null,null,0,null,0]
[null,null,null,null,0,null,0]
[null,null,null,null,0,null,0]
[null,null,null,null,0,null,0]
[null,null,null,null,0,null,0]
[null,null,null,null,0,null,0]
[null,null,null,null,0,null,0]
[null,null,null,null,0,null,0]
[null,null,null,null,0,null,0]
[null,null,null,null,0,null,0]
[null,null,null,null,0,null,0]
[null,null,null,null,0,null,0]
[null,null,null,null,0,null,0]
[null,null,null,null,0,null,0]
[null,null,null,null,0,null,0]
[null,null,null,null,0,null,0]
[null,null,null,null,{"$f":"SUM(C131:D131)","v":0},null,{"$f":"SUM(E131,-F131)","v":0}]
[null,null,null,null,0,null,0]
[null,null,null,null,0,null,0]
[null,null,null,null,0,null,0]
[null,null,null,null,0,null,0]
[null,null,null,null,0,null,0]
[null,null,null,null,0,null,0]
[null,null,null,null,0,null,0]
[null,null,null,null,0,null,0]
[null,null,null,null,0,null,0]
[null,null,null,null,0,null,0]
[null,null,null,null,0,null,0]
[null,null,null,null,0,null,0]
[null,null,null,null,0,null,0]
[null,null,null,null,0,null,0]
[null,null,null,null,0,null,0]
[null,null,null,null,0,null,0]
[null,null,null,null,0,null,0]
[null,null,null,null,0,null,0]
[null,null,null,null,0,null,0]
[null,null,null,null,0,null,0]
[null,null,null,null,0,null,0]
[null,null,null,null,0,null,0]
[null,null,null,null,0,null,0]
[null,null,null,null,0,null,0]
[null,null,null,null,0,null,0]
[null,null,null,null,0,null,0]
[null,null,null,null,0,null,0]
[null,null,null,null,0,null,0]
[null,null,null,null,0,null,0]
[null,null,null,null,0,null,0]
[null,null,null,null,0,null,0]
[null,null,null,null,0,null,0]
[null,null,null,null,0,null,0]
[null,null,null,null,0,null,0]
[null,null,null,null,0,null,0]
[null,null,null,null,0,null,0]
[null,null,null,null,0,null,0]
[null,null,null,null,0,null,0]
[null,null,null,null,0,null,0]
[null,null,null,null,0,null,0]
[null,null,null,null,0,null,0]
[null,null,null,null,0,null,0]
[null,null,null,null,0,null,0]
[null,null,null,null,0,null,0]
[null,null,null,null,0,null,0]
[null,null,null,null,0,null,0]
[null,null,null,null,0,null,0]
[null,null,null,null,0,null,0]
[null,null,null,null,0,null,0]
[null,null,null,null,0,null,0]
[null,null,null,null,0,null,0]
[null,null,null,null,0,null,0]
[null,null,null,null,0,null,0]
[null,null,null,null,0,null,0]
[null,null,null,null,0,null,0]
[null,null,null,null,0,null,0]
[null,null,null,null,0,null,0]
[null,null,null,null,0,null,0]
[null,null,null,null,0,null,0]
[null,null,null,null,0,null,0]
[null,null,null,null,0,null,0]
[null,null,null,null,0,null,0]
[null,null,null,null,0,null,0]
[null,null,null,null,{"$f":"SUM(C195:D195)","v":0},null,{"$f":"SUM(E195,-F195)","v":0}]
[null,null,null,null,0,null,0]
[null,null,null,null,0,null,0]
[null,null,null,null,0,null,0]
[null,null,null,null,0,null,0]
[null,null,null,null,0,null,0]
[null,null,null,null,0,null,0]
[null,null,null,null,0,null,0]
[null,null,null,null,0,null,0]
[null,null,null,null,0,null,0]
[null,null,null,null,0,null,0]
[null,null,null,null,0,null,0]
[null,null,null,null,0,null,0]
[null,null,null,null,0,null,0]
[null,null,null,null,0,null,0]
[null,null,null,null,0,null,0]
[null,null,null,null,0,null,0]
[null,null,null,null,0,null,0]
[null,null,null,null,0,null,0]
[null,null,null,null,0,null,0]
[null,null,null,null,0,null,0]
[null,null,null,null,0,null,0]

{"sheet":"اغسطس","index":8,"n_rows":216,"n_cols":9,"rows_kept":216,"cut":false,"hidden":false,"merged":[]}
["الاسم","المهنه","الاساسى","الإضافات","الاجمالى","الحسميات","صافى الراتب","التوقيع","الملاحظات"]
[null,null,null,null,{"$f":"SUM(C2:D2)","v":0},null,{"$f":"SUM(E2,-F2)","v":0}]
[null,null,null,null,{"$f":"SUM(C3:D3)","v":0},null,{"$f":"SUM(E3,-F3)","v":0}]
[null,null,null,null,0,null,0]
[null,null,null,null,0,null,0]
[null,null,null,null,0,null,0]
[null,null,null,null,0,null,0]
[null,null,null,null,0,null,0]
[null,null,null,null,0,null,0]
[null,null,null,null,0,null,0]
[null,null,null,null,0,null,0]
[null,null,null,null,0,null,0]
[null,null,null,null,0,null,0]
[null,null,null,null,0,null,0]
[null,null,null,null,0,null,0]
[null,null,null,null,0,null,0]
[null,null,null,null,0,null,0]
[null,null,null,null,0,null,0]
[null,null,null,null,0,null,0]
[null,null,null,null,0,null,0]
[null,null,null,null,0,null,0]
[null,null,null,null,0,null,0]
[null,null,null,null,0,null,0]
[null,null,null,null,0,null,0]
[null,null,null,null,0,null,0]
[null,null,null,null,0,null,0]
[null,null,null,null,0,null,0]
[null,null,null,null,0,null,0]
[null,null,null,null,0,null,0]
[null,null,null,null,0,null,0]
[null,null,null,null,0,null,0]
[null,null,null,null,0,null,0]
[null,null,null,null,0,null,0]
[null,null,null,null,0,null,0]
[null,null,null,null,0,null,0]
[null,null,null,null,0,null,0]
[null,null,null,null,0,null,0]
[null,null,null,null,0,null,0]
[null,null,null,null,0,null,0]
[null,null,null,null,0,null,0]
[null,null,null,null,0,null,0]
[null,null,null,null,0,null,0]
[null,null,null,null,0,null,0]
[null,null,null,null,0,null,0]
[null,null,null,null,0,null,0]
[null,null,null,null,0,null,0]
[null,null,null,null,0,null,0]
[null,null,null,null,0,null,0]
[null,null,null,null,0,null,0]
[null,null,null,null,0,null,0]
[null,null,null,null,0,null,0]
[null,null,null,null,0,null,0]
[null,null,null,null,0,null,0]
[null,null,null,null,0,null,0]
[null,null,null,null,0,null,0]
[null,null,null,null,0,null,0]
[null,null,null,null,0,null,0]
[null,null,null,null,0,null,0]
[null,null,null,null,0,null,0]
[null,null,null,null,0,null,0]
[null,null,null,null,0,null,0]
[null,null,null,null,0,null,0]
[null,null,null,null,0,null,0]
[null,null,null,null,0,null,0]
[null,null,null,null,0,null,0]
[null,null,null,null,0,null,0]
[null,null,null,null,{"$f":"SUM(C67:D67)","v":0},null,{"$f":"SUM(E67,-F67)","v":0}]
[null,null,null,null,0,null,0]
[null,null,null,null,0,null,0]
[null,null,null,null,0,null,0]
[null,null,null,null,0,null,0]
[null,null,null,null,0,null,0]
[null,null,null,null,0,null,0]
[null,null,null,null,0,null,0]
[null,null,null,null,0,null,0]
[null,null,null,null,0,null,0]
[null,null,null,null,0,null,0]
[null,null,null,null,0,null,0]
[null,null,null,null,0,null,0]
[null,null,null,null,0,null,0]
[null,null,null,null,0,null,0]
[null,null,null,null,0,null,0]
[null,null,null,null,0,null,0]
[null,null,null,null,0,null,0]
[null,null,null,null,0,null,0]
[null,null,null,null,0,null,0]
[null,null,null,null,0,null,0]
[null,null,null,null,0,null,0]
[null,null,null,null,0,null,0]
[null,null,null,null,0,null,0]
[null,null,null,null,0,null,0]
[null,null,null,null,0,null,0]
[null,null,null,null,0,null,0]
[null,null,null,null,0,null,0]
[null,null,null,null,0,null,0]
[null,null,null,null,0,null,0]
[null,null,null,null,0,null,0]
[null,null,null,null,0,null,0]
[null,null,null,null,0,null,0]
[null,null,null,null,0,null,0]
[null,null,null,null,0,null,0]
[null,null,null,null,0,null,0]
[null,null,null,null,0,null,0]
[null,null,null,null,0,null,0]
[null,null,null,null,0,null,0]
[null,null,null,null,0,null,0]
[null,null,null,null,0,null,0]
[null,null,null,null,0,null,0]
[null,null,null,null,0,null,0]
[null,null,null,null,0,null,0]
[null,null,null,null,0,null,0]
[null,null,null,null,0,null,0]
[null,null,null,null,0,null,0]
[null,null,null,null,0,null,0]
[null,null,null,null,0,null,0]
[null,null,null,null,0,null,0]
[null,null,null,null,0,null,0]
[null,null,null,null,0,null,0]
[null,null,null,null,0,null,0]
[null,null,null,null,0,null,0]
[null,null,null,null,0,null,0]
[null,null,null,null,0,null,0]
[null,null,null,null,0,null,0]
[null,null,null,null,0,null,0]
[null,null,null,null,0,null,0]
[null,null,null,null,0,null,0]
[null,null,null,null,0,null,0]
[null,null,null,null,0,null,0]
[null,null,null,null,0,null,0]
[null,null,null,null,0,null,0]
[null,null,null,null,{"$f":"SUM(C131:D131)","v":0},null,{"$f":"SUM(E131,-F131)","v":0}]
[null,null,null,null,0,null,0]
[null,null,null,null,0,null,0]
[null,null,null,null,0,null,0]
[null,null,null,null,0,null,0]
[null,null,null,null,0,null,0]
[null,null,null,null,0,null,0]
[null,null,null,null,0,null,0]
[null,null,null,null,0,null,0]
[null,null,null,null,0,null,0]
[null,null,null,null,0,null,0]
[null,null,null,null,0,null,0]
[null,null,null,null,0,null,0]
[null,null,null,null,0,null,0]
[null,null,null,null,0,null,0]
[null,null,null,null,0,null,0]
[null,null,null,null,0,null,0]
[null,null,null,null,0,null,0]
[null,null,null,null,0,null,0]
[null,null,null,null,0,null,0]
[null,null,null,null,0,null,0]
[null,null,null,null,0,null,0]
[null,null,null,null,0,null,0]
[null,null,null,null,0,null,0]
[null,null,null,null,0,null,0]
[null,null,null,null,0,null,0]
[null,null,null,null,0,null,0]
[null,null,null,null,0,null,0]
[null,null,null,null,0,null,0]
[null,null,null,null,0,null,0]
[null,null,null,null,0,null,0]
[null,null,null,null,0,null,0]
[null,null,null,null,0,null,0]
[null,null,null,null,0,null,0]
[null,null,null,null,0,null,0]
[null,null,null,null,0,null,0]
[null,null,null,null,0,null,0]
[null,null,null,null,0,null,0]
[null,null,null,null,0,null,0]
[null,null,null,null,0,null,0]
[null,null,null,null,0,null,0]
[null,null,null,null,0,null,0]
[null,null,null,null,0,null,0]
[null,null,null,null,0,null,0]
[null,null,null,null,0,null,0]
[null,null,null,null,0,null,0]
[null,null,null,null,0,null,0]
[null,null,null,null,0,null,0]
[null,null,null,null,0,null,0]
[null,null,null,null,0,null,0]
[null,null,null,null,0,null,0]
[null,null,null,null,0,null,0]
[null,null,null,null,0,null,0]
[null,null,null,null,0,null,0]
[null,null,null,null,0,null,0]
[null,null,null,null,0,null,0]
[null,null,null,null,0,null,0]
[null,null,null,null,0,null,0]
[null,null,null,null,0,null,0]
[null,null,null,null,0,null,0]
[null,null,null,null,0,null,0]
[null,null,null,null,0,null,0]
[null,null,null,null,0,null,0]
[null,null,null,null,0,null,0]
[null,null,null,null,{"$f":"SUM(C195:D195)","v":0},null,{"$f":"SUM(E195,-F195)","v":0}]
[null,null,null,null,0,null,0]
[null,null,null,null,0,null,0]
[null,null,null,null,0,null,0]
[null,null,null,null,0,null,0]
[null,null,null,null,0,null,0]
[null,null,null,null,0,null,0]
[null,null,null,null,0,null,0]
[null,null,null,null,0,null,0]
[null,null,null,null,0,null,0]
[null,null,null,null,0,null,0]
[null,null,null,null,0,null,0]
[null,null,null,null,0,null,0]
[null,null,null,null,0,null,0]
[null,null,null,null,0,null,0]
[null,null,null,null,0,null,0]
[null,null,null,null,0,null,0]
[null,null,null,null,0,null,0]
[null,null,null,null,0,null,0]
[null,null,null,null,0,null,0]
[null,null,null,null,0,null,0]
[null,null,null,null,0,null,0]

{"sheet":"سبتمبر","index":9,"n_rows":216,"n_cols":9,"rows_kept":216,"cut":false,"hidden":false,"merged":[]}
["الاسم","المهنه","الاساسى","الإضافات","الاجمالى","الحسميات","صافى الراتب","التوقيع","الملاحظات"]
[null,null,null,null,{"$f":"SUM(C2:D2)","v":0},null,{"$f":"SUM(E2,-F2)","v":0}]
[null,null,null,null,{"$f":"SUM(C3:D3)","v":0},null,{"$f":"SUM(E3,-F3)","v":0}]
[null,null,null,null,0,null,0]
[null,null,null,null,0,null,0]
[null,null,null,null,0,null,0]
[null,null,null,null,0,null,0]
[null,null,null,null,0,null,0]
[null,null,null,null,0,null,0]
[null,null,null,null,0,null,0]
[null,null,null,null,0,null,0]
[null,null,null,null,0,null,0]
[null,null,null,null,0,null,0]
[null,null,null,null,0,null,0]
[null,null,null,null,0,null,0]
[null,null,null,null,0,null,0]
[null,null,null,null,0,null,0]
[null,null,null,null,0,null,0]
[null,null,null,null,0,null,0]
[null,null,null,null,0,null,0]
[null,null,null,null,0,null,0]
[null,null,null,null,0,null,0]
[null,null,null,null,0,null,0]
[null,null,null,null,0,null,0]
[null,null,null,null,0,null,0]
[null,null,null,null,0,null,0]
[null,null,null,null,0,null,0]
[null,null,null,null,0,null,0]
[null,null,null,null,0,null,0]
[null,null,null,null,0,null,0]
[null,null,null,null,0,null,0]
[null,null,null,null,0,null,0]
[null,null,null,null,0,null,0]
[null,null,null,null,0,null,0]
[null,null,null,null,0,null,0]
[null,null,null,null,0,null,0]
[null,null,null,null,0,null,0]
[null,null,null,null,0,null,0]
[null,null,null,null,0,null,0]
[null,null,null,null,0,null,0]
[null,null,null,null,0,null,0]
[null,null,null,null,0,null,0]
[null,null,null,null,0,null,0]
[null,null,null,null,0,null,0]
[null,null,null,null,0,null,0]
[null,null,null,null,0,null,0]
[null,null,null,null,0,null,0]
[null,null,null,null,0,null,0]
[null,null,null,null,0,null,0]
[null,null,null,null,0,null,0]
[null,null,null,null,0,null,0]
[null,null,null,null,0,null,0]
[null,null,null,null,0,null,0]
[null,null,null,null,0,null,0]
[null,null,null,null,0,null,0]
[null,null,null,null,0,null,0]
[null,null,null,null,0,null,0]
[null,null,null,null,0,null,0]
[null,null,null,null,0,null,0]
[null,null,null,null,0,null,0]
[null,null,null,null,0,null,0]
[null,null,null,null,0,null,0]
[null,null,null,null,0,null,0]
[null,null,null,null,0,null,0]
[null,null,null,null,0,null,0]
[null,null,null,null,0,null,0]
[null,null,null,null,{"$f":"SUM(C67:D67)","v":0},null,{"$f":"SUM(E67,-F67)","v":0}]
[null,null,null,null,0,null,0]
[null,null,null,null,0,null,0]
[null,null,null,null,0,null,0]
[null,null,null,null,0,null,0]
[null,null,null,null,0,null,0]
[null,null,null,null,0,null,0]
[null,null,null,null,0,null,0]
[null,null,null,null,0,null,0]
[null,null,null,null,0,null,0]
[null,null,null,null,0,null,0]
[null,null,null,null,0,null,0]
[null,null,null,null,0,null,0]
[null,null,null,null,0,null,0]
[null,null,null,null,0,null,0]
[null,null,null,null,0,null,0]
[null,null,null,null,0,null,0]
[null,null,null,null,0,null,0]
[null,null,null,null,0,null,0]
[null,null,null,null,0,null,0]
[null,null,null,null,0,null,0]
[null,null,null,null,0,null,0]
[null,null,null,null,0,null,0]
[null,null,null,null,0,null,0]
[null,null,null,null,0,null,0]
[null,null,null,null,0,null,0]
[null,null,null,null,0,null,0]
[null,null,null,null,0,null,0]
[null,null,null,null,0,null,0]
[null,null,null,null,0,null,0]
[null,null,null,null,0,null,0]
[null,null,null,null,0,null,0]
[null,null,null,null,0,null,0]
[null,null,null,null,0,null,0]
[null,null,null,null,0,null,0]
[null,null,null,null,0,null,0]
[null,null,null,null,0,null,0]
[null,null,null,null,0,null,0]
[null,null,null,null,0,null,0]
[null,null,null,null,0,null,0]
[null,null,null,null,0,null,0]
[null,null,null,null,0,null,0]
[null,null,null,null,0,null,0]
[null,null,null,null,0,null,0]
[null,null,null,null,0,null,0]
[null,null,null,null,0,null,0]
[null,null,null,null,0,null,0]
[null,null,null,null,0,null,0]
[null,null,null,null,0,null,0]
[null,null,null,null,0,null,0]
[null,null,null,null,0,null,0]
[null,null,null,null,0,null,0]
[null,null,null,null,0,null,0]
[null,null,null,null,0,null,0]
[null,null,null,null,0,null,0]
[null,null,null,null,0,null,0]
[null,null,null,null,0,null,0]
[null,null,null,null,0,null,0]
[null,null,null,null,0,null,0]
[null,null,null,null,0,null,0]
[null,null,null,null,0,null,0]
[null,null,null,null,0,null,0]
[null,null,null,null,0,null,0]
[null,null,null,null,0,null,0]
[null,null,null,null,{"$f":"SUM(C131:D131)","v":0},null,{"$f":"SUM(E131,-F131)","v":0}]
[null,null,null,null,0,null,0]
[null,null,null,null,0,null,0]
[null,null,null,null,0,null,0]
[null,null,null,null,0,null,0]
[null,null,null,null,0,null,0]
[null,null,null,null,0,null,0]
[null,null,null,null,0,null,0]
[null,null,null,null,0,null,0]
[null,null,null,null,0,null,0]
[null,null,null,null,0,null,0]
[null,null,null,null,0,null,0]
[null,null,null,null,0,null,0]
[null,null,null,null,0,null,0]
[null,null,null,null,0,null,0]
[null,null,null,null,0,null,0]
[null,null,null,null,0,null,0]
[null,null,null,null,0,null,0]
[null,null,null,null,0,null,0]
[null,null,null,null,0,null,0]
[null,null,null,null,0,null,0]
[null,null,null,null,0,null,0]
[null,null,null,null,0,null,0]
[null,null,null,null,0,null,0]
[null,null,null,null,0,null,0]
[null,null,null,null,0,null,0]
[null,null,null,null,0,null,0]
[null,null,null,null,0,null,0]
[null,null,null,null,0,null,0]
[null,null,null,null,0,null,0]
[null,null,null,null,0,null,0]
[null,null,null,null,0,null,0]
[null,null,null,null,0,null,0]
[null,null,null,null,0,null,0]
[null,null,null,null,0,null,0]
[null,null,null,null,0,null,0]
[null,null,null,null,0,null,0]
[null,null,null,null,0,null,0]
[null,null,null,null,0,null,0]
[null,null,null,null,0,null,0]
[null,null,null,null,0,null,0]
[null,null,null,null,0,null,0]
[null,null,null,null,0,null,0]
[null,null,null,null,0,null,0]
[null,null,null,null,0,null,0]
[null,null,null,null,0,null,0]
[null,null,null,null,0,null,0]
[null,null,null,null,0,null,0]
[null,null,null,null,0,null,0]
[null,null,null,null,0,null,0]
[null,null,null,null,0,null,0]
[null,null,null,null,0,null,0]
[null,null,null,null,0,null,0]
[null,null,null,null,0,null,0]
[null,null,null,null,0,null,0]
[null,null,null,null,0,null,0]
[null,null,null,null,0,null,0]
[null,null,null,null,0,null,0]
[null,null,null,null,0,null,0]
[null,null,null,null,0,null,0]
[null,null,null,null,0,null,0]
[null,null,null,null,0,null,0]
[null,null,null,null,0,null,0]
[null,null,null,null,0,null,0]
[null,null,null,null,{"$f":"SUM(C195:D195)","v":0},null,{"$f":"SUM(E195,-F195)","v":0}]
[null,null,null,null,0,null,0]
[null,null,null,null,0,null,0]
[null,null,null,null,0,null,0]
[null,null,null,null,0,null,0]
[null,null,null,null,0,null,0]
[null,null,null,null,0,null,0]
[null,null,null,null,0,null,0]
[null,null,null,null,0,null,0]
[null,null,null,null,0,null,0]
[null,null,null,null,0,null,0]
[null,null,null,null,0,null,0]
[null,null,null,null,0,null,0]
[null,null,null,null,0,null,0]
[null,null,null,null,0,null,0]
[null,null,null,null,0,null,0]
[null,null,null,null,0,null,0]
[null,null,null,null,0,null,0]
[null,null,null,null,0,null,0]
[null,null,null,null,0,null,0]
[null,null,null,null,0,null,0]
[null,null,null,null,0,null,0]

{"sheet":"اكتوبر","index":10,"n_rows":216,"n_cols":9,"rows_kept":216,"cut":false,"hidden":false,"merged":[]}
["الاسم","المهنه","الاساسى","الإضافات","الاجمالى","الحسميات","صافى الراتب","التوقيع","الملاحظات"]
[null,null,null,null,{"$f":"SUM(C2:D2)","v":0},null,{"$f":"SUM(E2,-F2)","v":0}]
[null,null,null,null,{"$f":"SUM(C3:D3)","v":0},null,{"$f":"SUM(E3,-F3)","v":0}]
[null,null,null,null,0,null,0]
[null,null,null,null,0,null,0]
[null,null,null,null,0,null,0]
[null,null,null,null,0,null,0]
[null,null,null,null,0,null,0]
[null,null,null,null,0,null,0]
[null,null,null,null,0,null,0]
[null,null,null,null,0,null,0]
[null,null,null,null,0,null,0]
[null,null,null,null,0,null,0]
[null,null,null,null,0,null,0]
[null,null,null,null,0,null,0]
[null,null,null,null,0,null,0]
[null,null,null,null,0,null,0]
[null,null,null,null,0,null,0]
[null,null,null,null,0,null,0]
[null,null,null,null,0,null,0]
[null,null,null,null,0,null,0]
[null,null,null,null,0,null,0]
[null,null,null,null,0,null,0]
[null,null,null,null,0,null,0]
[null,null,null,null,0,null,0]
[null,null,null,null,0,null,0]
[null,null,null,null,0,null,0]
[null,null,null,null,0,null,0]
[null,null,null,null,0,null,0]
[null,null,null,null,0,null,0]
[null,null,null,null,0,null,0]
[null,null,null,null,0,null,0]
[null,null,null,null,0,null,0]
[null,null,null,null,0,null,0]
[null,null,null,null,0,null,0]
[null,null,null,null,0,null,0]
[null,null,null,null,0,null,0]
[null,null,null,null,0,null,0]
[null,null,null,null,0,null,0]
[null,null,null,null,0,null,0]
[null,null,null,null,0,null,0]
[null,null,null,null,0,null,0]
[null,null,null,null,0,null,0]
[null,null,null,null,0,null,0]
[null,null,null,null,0,null,0]
[null,null,null,null,0,null,0]
[null,null,null,null,0,null,0]
[null,null,null,null,0,null,0]
[null,null,null,null,0,null,0]
[null,null,null,null,0,null,0]
[null,null,null,null,0,null,0]
[null,null,null,null,0,null,0]
[null,null,null,null,0,null,0]
[null,null,null,null,0,null,0]
[null,null,null,null,0,null,0]
[null,null,null,null,0,null,0]
[null,null,null,null,0,null,0]
[null,null,null,null,0,null,0]
[null,null,null,null,0,null,0]
[null,null,null,null,0,null,0]
[null,null,null,null,0,null,0]
[null,null,null,null,0,null,0]
[null,null,null,null,0,null,0]
[null,null,null,null,0,null,0]
[null,null,null,null,0,null,0]
[null,null,null,null,0,null,0]
[null,null,null,null,{"$f":"SUM(C67:D67)","v":0},null,{"$f":"SUM(E67,-F67)","v":0}]
[null,null,null,null,0,null,0]
[null,null,null,null,0,null,0]
[null,null,null,null,0,null,0]
[null,null,null,null,0,null,0]
[null,null,null,null,0,null,0]
[null,null,null,null,0,null,0]
[null,null,null,null,0,null,0]
[null,null,null,null,0,null,0]
[null,null,null,null,0,null,0]
[null,null,null,null,0,null,0]
[null,null,null,null,0,null,0]
[null,null,null,null,0,null,0]
[null,null,null,null,0,null,0]
[null,null,null,null,0,null,0]
[null,null,null,null,0,null,0]
[null,null,null,null,0,null,0]
[null,null,null,null,0,null,0]
[null,null,null,null,0,null,0]
[null,null,null,null,0,null,0]
[null,null,null,null,0,null,0]
[null,null,null,null,0,null,0]
[null,null,null,null,0,null,0]
[null,null,null,null,0,null,0]
[null,null,null,null,0,null,0]
[null,null,null,null,0,null,0]
[null,null,null,null,0,null,0]
[null,null,null,null,0,null,0]
[null,null,null,null,0,null,0]
[null,null,null,null,0,null,0]
[null,null,null,null,0,null,0]
[null,null,null,null,0,null,0]
[null,null,null,null,0,null,0]
[null,null,null,null,0,null,0]
[null,null,null,null,0,null,0]
[null,null,null,null,0,null,0]
[null,null,null,null,0,null,0]
[null,null,null,null,0,null,0]
[null,null,null,null,0,null,0]
[null,null,null,null,0,null,0]
[null,null,null,null,0,null,0]
[null,null,null,null,0,null,0]
[null,null,null,null,0,null,0]
[null,null,null,null,0,null,0]
[null,null,null,null,0,null,0]
[null,null,null,null,0,null,0]
[null,null,null,null,0,null,0]
[null,null,null,null,0,null,0]
[null,null,null,null,0,null,0]
[null,null,null,null,0,null,0]
[null,null,null,null,0,null,0]
[null,null,null,null,0,null,0]
[null,null,null,null,0,null,0]
[null,null,null,null,0,null,0]
[null,null,null,null,0,null,0]
[null,null,null,null,0,null,0]
[null,null,null,null,0,null,0]
[null,null,null,null,0,null,0]
[null,null,null,null,0,null,0]
[null,null,null,null,0,null,0]
[null,null,null,null,0,null,0]
[null,null,null,null,0,null,0]
[null,null,null,null,0,null,0]
[null,null,null,null,0,null,0]
[null,null,null,null,{"$f":"SUM(C131:D131)","v":0},null,{"$f":"SUM(E131,-F131)","v":0}]
[null,null,null,null,0,null,0]
[null,null,null,null,0,null,0]
[null,null,null,null,0,null,0]
[null,null,null,null,0,null,0]
[null,null,null,null,0,null,0]
[null,null,null,null,0,null,0]
[null,null,null,null,0,null,0]
[null,null,null,null,0,null,0]
[null,null,null,null,0,null,0]
[null,null,null,null,0,null,0]
[null,null,null,null,0,null,0]
[null,null,null,null,0,null,0]
[null,null,null,null,0,null,0]
[null,null,null,null,0,null,0]
[null,null,null,null,0,null,0]
[null,null,null,null,0,null,0]
[null,null,null,null,0,null,0]
[null,null,null,null,0,null,0]
[null,null,null,null,0,null,0]
[null,null,null,null,0,null,0]
[null,null,null,null,0,null,0]
[null,null,null,null,0,null,0]
[null,null,null,null,0,null,0]
[null,null,null,null,0,null,0]
[null,null,null,null,0,null,0]
[null,null,null,null,0,null,0]
[null,null,null,null,0,null,0]
[null,null,null,null,0,null,0]
[null,null,null,null,0,null,0]
[null,null,null,null,0,null,0]
[null,null,null,null,0,null,0]
[null,null,null,null,0,null,0]
[null,null,null,null,0,null,0]
[null,null,null,null,0,null,0]
[null,null,null,null,0,null,0]
[null,null,null,null,0,null,0]
[null,null,null,null,0,null,0]
[null,null,null,null,0,null,0]
[null,null,null,null,0,null,0]
[null,null,null,null,0,null,0]
[null,null,null,null,0,null,0]
[null,null,null,null,0,null,0]
[null,null,null,null,0,null,0]
[null,null,null,null,0,null,0]
[null,null,null,null,0,null,0]
[null,null,null,null,0,null,0]
[null,null,null,null,0,null,0]
[null,null,null,null,0,null,0]
[null,null,null,null,0,null,0]
[null,null,null,null,0,null,0]
[null,null,null,null,0,null,0]
[null,null,null,null,0,null,0]
[null,null,null,null,0,null,0]
[null,null,null,null,0,null,0]
[null,null,null,null,0,null,0]
[null,null,null,null,0,null,0]
[null,null,null,null,0,null,0]
[null,null,null,null,0,null,0]
[null,null,null,null,0,null,0]
[null,null,null,null,0,null,0]
[null,null,null,null,0,null,0]
[null,null,null,null,0,null,0]
[null,null,null,null,0,null,0]
[null,null,null,null,{"$f":"SUM(C195:D195)","v":0},null,{"$f":"SUM(E195,-F195)","v":0}]
[null,null,null,null,0,null,0]
[null,null,null,null,0,null,0]
[null,null,null,null,0,null,0]
[null,null,null,null,0,null,0]
[null,null,null,null,0,null,0]
[null,null,null,null,0,null,0]
[null,null,null,null,0,null,0]
[null,null,null,null,0,null,0]
[null,null,null,null,0,null,0]
[null,null,null,null,0,null,0]
[null,null,null,null,0,null,0]
[null,null,null,null,0,null,0]
[null,null,null,null,0,null,0]
[null,null,null,null,0,null,0]
[null,null,null,null,0,null,0]
[null,null,null,null,0,null,0]
[null,null,null,null,0,null,0]
[null,null,null,null,0,null,0]
[null,null,null,null,0,null,0]
[null,null,null,null,0,null,0]
[null,null,null,null,0,null,0]

{"sheet":"نوفمبر","index":11,"n_rows":216,"n_cols":9,"rows_kept":216,"cut":false,"hidden":false,"merged":[]}
["الاسم","المهنه","الاساسى","الإضافات","الاجمالى","الحسميات","صافى الراتب","التوقيع","الملاحظات"]
[null,null,null,null,{"$f":"SUM(C2:D2)","v":0},null,{"$f":"SUM(E2,-F2)","v":0}]
[null,null,null,null,{"$f":"SUM(C3:D3)","v":0},null,{"$f":"SUM(E3,-F3)","v":0}]
[null,null,null,null,0,null,0]
[null,null,null,null,0,null,0]
[null,null,null,null,0,null,0]
[null,null,null,null,0,null,0]
[null,null,null,null,0,null,0]
[null,null,null,null,0,null,0]
[null,null,null,null,0,null,0]
[null,null,null,null,0,null,0]
[null,null,null,null,0,null,0]
[null,null,null,null,0,null,0]
[null,null,null,null,0,null,0]
[null,null,null,null,0,null,0]
[null,null,null,null,0,null,0]
[null,null,null,null,0,null,0]
[null,null,null,null,0,null,0]
[null,null,null,null,0,null,0]
[null,null,null,null,0,null,0]
[null,null,null,null,0,null,0]
[null,null,null,null,0,null,0]
[null,null,null,null,0,null,0]
[null,null,null,null,0,null,0]
[null,null,null,null,0,null,0]
[null,null,null,null,0,null,0]
[null,null,null,null,0,null,0]
[null,null,null,null,0,null,0]
[null,null,null,null,0,null,0]
[null,null,null,null,0,null,0]
[null,null,null,null,0,null,0]
[null,null,null,null,0,null,0]
[null,null,null,null,0,null,0]
[null,null,null,null,0,null,0]
[null,null,null,null,0,null,0]
[null,null,null,null,0,null,0]
[null,null,null,null,0,null,0]
[null,null,null,null,0,null,0]
[null,null,null,null,0,null,0]
[null,null,null,null,0,null,0]
[null,null,null,null,0,null,0]
[null,null,null,null,0,null,0]
[null,null,null,null,0,null,0]
[null,null,null,null,0,null,0]
[null,null,null,null,0,null,0]
[null,null,null,null,0,null,0]
[null,null,null,null,0,null,0]
[null,null,null,null,0,null,0]
[null,null,null,null,0,null,0]
[null,null,null,null,0,null,0]
[null,null,null,null,0,null,0]
[null,null,null,null,0,null,0]
[null,null,null,null,0,null,0]
[null,null,null,null,0,null,0]
[null,null,null,null,0,null,0]
[null,null,null,null,0,null,0]
[null,null,null,null,0,null,0]
[null,null,null,null,0,null,0]
[null,null,null,null,0,null,0]
[null,null,null,null,0,null,0]
[null,null,null,null,0,null,0]
[null,null,null,null,0,null,0]
[null,null,null,null,0,null,0]
[null,null,null,null,0,null,0]
[null,null,null,null,0,null,0]
[null,null,null,null,0,null,0]
[null,null,null,null,{"$f":"SUM(C67:D67)","v":0},null,{"$f":"SUM(E67,-F67)","v":0}]
[null,null,null,null,0,null,0]
[null,null,null,null,0,null,0]
[null,null,null,null,0,null,0]
[null,null,null,null,0,null,0]
[null,null,null,null,0,null,0]
[null,null,null,null,0,null,0]
[null,null,null,null,0,null,0]
[null,null,null,null,0,null,0]
[null,null,null,null,0,null,0]
[null,null,null,null,0,null,0]
[null,null,null,null,0,null,0]
[null,null,null,null,0,null,0]
[null,null,null,null,0,null,0]
[null,null,null,null,0,null,0]
[null,null,null,null,0,null,0]
[null,null,null,null,0,null,0]
[null,null,null,null,0,null,0]
[null,null,null,null,0,null,0]
[null,null,null,null,0,null,0]
[null,null,null,null,0,null,0]
[null,null,null,null,0,null,0]
[null,null,null,null,0,null,0]
[null,null,null,null,0,null,0]
[null,null,null,null,0,null,0]
[null,null,null,null,0,null,0]
[null,null,null,null,0,null,0]
[null,null,null,null,0,null,0]
[null,null,null,null,0,null,0]
[null,null,null,null,0,null,0]
[null,null,null,null,0,null,0]
[null,null,null,null,0,null,0]
[null,null,null,null,0,null,0]
[null,null,null,null,0,null,0]
[null,null,null,null,0,null,0]
[null,null,null,null,0,null,0]
[null,null,null,null,0,null,0]
[null,null,null,null,0,null,0]
[null,null,null,null,0,null,0]
[null,null,null,null,0,null,0]
[null,null,null,null,0,null,0]
[null,null,null,null,0,null,0]
[null,null,null,null,0,null,0]
[null,null,null,null,0,null,0]
[null,null,null,null,0,null,0]
[null,null,null,null,0,null,0]
[null,null,null,null,0,null,0]
[null,null,null,null,0,null,0]
[null,null,null,null,0,null,0]
[null,null,null,null,0,null,0]
[null,null,null,null,0,null,0]
[null,null,null,null,0,null,0]
[null,null,null,null,0,null,0]
[null,null,null,null,0,null,0]
[null,null,null,null,0,null,0]
[null,null,null,null,0,null,0]
[null,null,null,null,0,null,0]
[null,null,null,null,0,null,0]
[null,null,null,null,0,null,0]
[null,null,null,null,0,null,0]
[null,null,null,null,0,null,0]
[null,null,null,null,0,null,0]
[null,null,null,null,0,null,0]
[null,null,null,null,0,null,0]
[null,null,null,null,{"$f":"SUM(C131:D131)","v":0},null,{"$f":"SUM(E131,-F131)","v":0}]
[null,null,null,null,0,null,0]
[null,null,null,null,0,null,0]
[null,null,null,null,0,null,0]
[null,null,null,null,0,null,0]
[null,null,null,null,0,null,0]
[null,null,null,null,0,null,0]
[null,null,null,null,0,null,0]
[null,null,null,null,0,null,0]
[null,null,null,null,0,null,0]
[null,null,null,null,0,null,0]
[null,null,null,null,0,null,0]
[null,null,null,null,0,null,0]
[null,null,null,null,0,null,0]
[null,null,null,null,0,null,0]
[null,null,null,null,0,null,0]
[null,null,null,null,0,null,0]
[null,null,null,null,0,null,0]
[null,null,null,null,0,null,0]
[null,null,null,null,0,null,0]
[null,null,null,null,0,null,0]
[null,null,null,null,0,null,0]
[null,null,null,null,0,null,0]
[null,null,null,null,0,null,0]
[null,null,null,null,0,null,0]
[null,null,null,null,0,null,0]
[null,null,null,null,0,null,0]
[null,null,null,null,0,null,0]
[null,null,null,null,0,null,0]
[null,null,null,null,0,null,0]
[null,null,null,null,0,null,0]
[null,null,null,null,0,null,0]
[null,null,null,null,0,null,0]
[null,null,null,null,0,null,0]
[null,null,null,null,0,null,0]
[null,null,null,null,0,null,0]
[null,null,null,null,0,null,0]
[null,null,null,null,0,null,0]
[null,null,null,null,0,null,0]
[null,null,null,null,0,null,0]
[null,null,null,null,0,null,0]
[null,null,null,null,0,null,0]
[null,null,null,null,0,null,0]
[null,null,null,null,0,null,0]
[null,null,null,null,0,null,0]
[null,null,null,null,0,null,0]
[null,null,null,null,0,null,0]
[null,null,null,null,0,null,0]
[null,null,null,null,0,null,0]
[null,null,null,null,0,null,0]
[null,null,null,null,0,null,0]
[null,null,null,null,0,null,0]
[null,null,null,null,0,null,0]
[null,null,null,null,0,null,0]
[null,null,null,null,0,null,0]
[null,null,null,null,0,null,0]
[null,null,null,null,0,null,0]
[null,null,null,null,0,null,0]
[null,null,null,null,0,null,0]
[null,null,null,null,0,null,0]
[null,null,null,null,0,null,0]
[null,null,null,null,0,null,0]
[null,null,null,null,0,null,0]
[null,null,null,null,0,null,0]
[null,null,null,null,{"$f":"SUM(C195:D195)","v":0},null,{"$f":"SUM(E195,-F195)","v":0}]
[null,null,null,null,0,null,0]
[null,null,null,null,0,null,0]
[null,null,null,null,0,null,0]
[null,null,null,null,0,null,0]
[null,null,null,null,0,null,0]
[null,null,null,null,0,null,0]
[null,null,null,null,0,null,0]
[null,null,null,null,0,null,0]
[null,null,null,null,0,null,0]
[null,null,null,null,0,null,0]
[null,null,null,null,0,null,0]
[null,null,null,null,0,null,0]
[null,null,null,null,0,null,0]
[null,null,null,null,0,null,0]
[null,null,null,null,0,null,0]
[null,null,null,null,0,null,0]
[null,null,null,null,0,null,0]
[null,null,null,null,0,null,0]
[null,null,null,null,0,null,0]
[null,null,null,null,0,null,0]
[null,null,null,null,0,null,0]

{"sheet":"ديسمبر","index":12,"n_rows":216,"n_cols":9,"rows_kept":216,"cut":false,"hidden":false,"merged":[]}
["الاسم","المهنه","الاساسى","الإضافات","الاجمالى","الحسميات","صافى الراتب","التوقيع","الملاحظات"]
[null,null,null,null,{"$f":"SUM(C2:D2)","v":0},null,{"$f":"SUM(E2,-F2)","v":0}]
[null,null,null,null,{"$f":"SUM(C3:D3)","v":0},null,{"$f":"SUM(E3,-F3)","v":0}]
[null,null,null,null,0,null,0]
[null,null,null,null,0,null,0]
[null,null,null,null,0,null,0]
[null,null,null,null,0,null,0]
[null,null,null,null,0,null,0]
[null,null,null,null,0,null,0]
[null,null,null,null,0,null,0]
[null,null,null,null,0,null,0]
[null,null,null,null,0,null,0]
[null,null,null,null,0,null,0]
[null,null,null,null,0,null,0]
[null,null,null,null,0,null,0]
[null,null,null,null,0,null,0]
[null,null,null,null,0,null,0]
[null,null,null,null,0,null,0]
[null,null,null,null,0,null,0]
[null,null,null,null,0,null,0]
[null,null,null,null,0,null,0]
[null,null,null,null,0,null,0]
[null,null,null,null,0,null,0]
[null,null,null,null,0,null,0]
[null,null,null,null,0,null,0]
[null,null,null,null,0,null,0]
[null,null,null,null,0,null,0]
[null,null,null,null,0,null,0]
[null,null,null,null,0,null,0]
[null,null,null,null,0,null,0]
[null,null,null,null,0,null,0]
[null,null,null,null,0,null,0]
[null,null,null,null,0,null,0]
[null,null,null,null,0,null,0]
[null,null,null,null,0,null,0]
[null,null,null,null,0,null,0]
[null,null,null,null,0,null,0]
[null,null,null,null,0,null,0]
[null,null,null,null,0,null,0]
[null,null,null,null,0,null,0]
[null,null,null,null,0,null,0]
[null,null,null,null,0,null,0]
[null,null,null,null,0,null,0]
[null,null,null,null,0,null,0]
[null,null,null,null,0,null,0]
[null,null,null,null,0,null,0]
[null,null,null,null,0,null,0]
[null,null,null,null,0,null,0]
[null,null,null,null,0,null,0]
[null,null,null,null,0,null,0]
[null,null,null,null,0,null,0]
[null,null,null,null,0,null,0]
[null,null,null,null,0,null,0]
[null,null,null,null,0,null,0]
[null,null,null,null,0,null,0]
[null,null,null,null,0,null,0]
[null,null,null,null,0,null,0]
[null,null,null,null,0,null,0]
[null,null,null,null,0,null,0]
[null,null,null,null,0,null,0]
[null,null,null,null,0,null,0]
[null,null,null,null,0,null,0]
[null,null,null,null,0,null,0]
[null,null,null,null,0,null,0]
[null,null,null,null,0,null,0]
[null,null,null,null,0,null,0]
[null,null,null,null,{"$f":"SUM(C67:D67)","v":0},null,{"$f":"SUM(E67,-F67)","v":0}]
[null,null,null,null,0,null,0]
[null,null,null,null,0,null,0]
[null,null,null,null,0,null,0]
[null,null,null,null,0,null,0]
[null,null,null,null,0,null,0]
[null,null,null,null,0,null,0]
[null,null,null,null,0,null,0]
[null,null,null,null,0,null,0]
[null,null,null,null,0,null,0]
[null,null,null,null,0,null,0]
[null,null,null,null,0,null,0]
[null,null,null,null,0,null,0]
[null,null,null,null,0,null,0]
[null,null,null,null,0,null,0]
[null,null,null,null,0,null,0]
[null,null,null,null,0,null,0]
[null,null,null,null,0,null,0]
[null,null,null,null,0,null,0]
[null,null,null,null,0,null,0]
[null,null,null,null,0,null,0]
[null,null,null,null,0,null,0]
[null,null,null,null,0,null,0]
[null,null,null,null,0,null,0]
[null,null,null,null,0,null,0]
[null,null,null,null,0,null,0]
[null,null,null,null,0,null,0]
[null,null,null,null,0,null,0]
[null,null,null,null,0,null,0]
[null,null,null,null,0,null,0]
[null,null,null,null,0,null,0]
[null,null,null,null,0,null,0]
[null,null,null,null,0,null,0]
[null,null,null,null,0,null,0]
[null,null,null,null,0,null,0]
[null,null,null,null,0,null,0]
[null,null,null,null,0,null,0]
[null,null,null,null,0,null,0]
[null,null,null,null,0,null,0]
[null,null,null,null,0,null,0]
[null,null,null,null,0,null,0]
[null,null,null,null,0,null,0]
[null,null,null,null,0,null,0]
[null,null,null,null,0,null,0]
[null,null,null,null,0,null,0]
[null,null,null,null,0,null,0]
[null,null,null,null,0,null,0]
[null,null,null,null,0,null,0]
[null,null,null,null,0,null,0]
[null,null,null,null,0,null,0]
[null,null,null,null,0,null,0]
[null,null,null,null,0,null,0]
[null,null,null,null,0,null,0]
[null,null,null,null,0,null,0]
[null,null,null,null,0,null,0]
[null,null,null,null,0,null,0]
[null,null,null,null,0,null,0]
[null,null,null,null,0,null,0]
[null,null,null,null,0,null,0]
[null,null,null,null,0,null,0]
[null,null,null,null,0,null,0]
[null,null,null,null,0,null,0]
[null,null,null,null,0,null,0]
[null,null,null,null,0,null,0]
[null,null,null,null,{"$f":"SUM(C131:D131)","v":0},null,{"$f":"SUM(E131,-F131)","v":0}]
[null,null,null,null,0,null,0]
[null,null,null,null,0,null,0]
[null,null,null,null,0,null,0]
[null,null,null,null,0,null,0]
[null,null,null,null,0,null,0]
[null,null,null,null,0,null,0]
[null,null,null,null,0,null,0]
[null,null,null,null,0,null,0]
[null,null,null,null,0,null,0]
[null,null,null,null,0,null,0]
[null,null,null,null,0,null,0]
[null,null,null,null,0,null,0]
[null,null,null,null,0,null,0]
[null,null,null,null,0,null,0]
[null,null,null,null,0,null,0]
[null,null,null,null,0,null,0]
[null,null,null,null,0,null,0]
[null,null,null,null,0,null,0]
[null,null,null,null,0,null,0]
[null,null,null,null,0,null,0]
[null,null,null,null,0,null,0]
[null,null,null,null,0,null,0]
[null,null,null,null,0,null,0]
[null,null,null,null,0,null,0]
[null,null,null,null,0,null,0]
[null,null,null,null,0,null,0]
[null,null,null,null,0,null,0]
[null,null,null,null,0,null,0]
[null,null,null,null,0,null,0]
[null,null,null,null,0,null,0]
[null,null,null,null,0,null,0]
[null,null,null,null,0,null,0]
[null,null,null,null,0,null,0]
[null,null,null,null,0,null,0]
[null,null,null,null,0,null,0]
[null,null,null,null,0,null,0]
[null,null,null,null,0,null,0]
[null,null,null,null,0,null,0]
[null,null,null,null,0,null,0]
[null,null,null,null,0,null,0]
[null,null,null,null,0,null,0]
[null,null,null,null,0,null,0]
[null,null,null,null,0,null,0]
[null,null,null,null,0,null,0]
[null,null,null,null,0,null,0]
[null,null,null,null,0,null,0]
[null,null,null,null,0,null,0]
[null,null,null,null,0,null,0]
[null,null,null,null,0,null,0]
[null,null,null,null,0,null,0]
[null,null,null,null,0,null,0]
[null,null,null,null,0,null,0]
[null,null,null,null,0,null,0]
[null,null,null,null,0,null,0]
[null,null,null,null,0,null,0]
[null,null,null,null,0,null,0]
[null,null,null,null,0,null,0]
[null,null,null,null,0,null,0]
[null,null,null,null,0,null,0]
[null,null,null,null,0,null,0]
[null,null,null,null,0,null,0]
[null,null,null,null,0,null,0]
[null,null,null,null,0,null,0]
[null,null,null,null,{"$f":"SUM(C195:D195)","v":0},null,{"$f":"SUM(E195,-F195)","v":0}]
[null,null,null,null,0,null,0]
[null,null,null,null,0,null,0]
[null,null,null,null,0,null,0]
[null,null,null,null,0,null,0]
[null,null,null,null,0,null,0]
[null,null,null,null,0,null,0]
[null,null,null,null,0,null,0]
[null,null,null,null,0,null,0]
[null,null,null,null,0,null,0]
[null,null,null,null,0,null,0]
[null,null,null,null,0,null,0]
[null,null,null,null,0,null,0]
[null,null,null,null,0,null,0]
[null,null,null,null,0,null,0]
[null,null,null,null,0,null,0]
[null,null,null,null,0,null,0]
[null,null,null,null,0,null,0]
[null,null,null,null,0,null,0]
[null,null,null,null,0,null,0]
[null,null,null,null,0,null,0]
[null,null,null,null,0,null,0]